{"text_format":"1","workbook":"xlsx","n_sheets":10,"sheets":["Spiele Staffel 1","Spiele Staffel 2","Spiele Staffel 3","Spiele Staffel 4","Mannschaften","Spielerzuordnung","Alle Spieler","START","STARTEN","Anleitung"],"not_rendered":{"charts":0,"images":3,"macros":1,"external_links":0,"defined_names":12,"comments":1,"pivot_tables":0},"unopened":[],"bounds":{"document_bytes":16777216,"sheet_cells":100000,"rows_first":2000,"rows_last":500,"rows_between":2000,"halvings":0,"cell_chars":16384,"cell_head_chars":4096},"cells_cut":0,"cells_raw":0,"read":"whole","date_system":"1900"}

{"sheet":"Spiele Staffel 1","index":0,"n_rows":39,"n_cols":8,"rows_kept":39,"cut":false,"hidden":true,"merged":[]}
["Mannschaftsmeisterschaft 1.Liga - Hinrunde",null,null,null,null,null,null,"STAFFEL 1 Spiel Wählen"]
["ST","Nr.","Datum","Gastgeber","Gast",null,null,"POKAL 3er:123456:für Pokalspiel"]
[null,231037,"2024-02-08","ZLSG Wormstedt 2","ZLSG Wormstedt 1",null,null,{"$f":"TEXT(C3,\"TT.M.JJ\")& \":\"&B3&\":\"&D3&\":\"&E3","v":"08.2.24:231037:ZLSG Wormstedt 2:ZLSG Wormstedt 1"}]
[null,231038,"2024-02-09","SG Rot.Tannroda 1","BSV 04 Bad Berka F1",null,null,"09.2.24:231038:SG Rot.Tannroda 1:BSV 04 Bad Berka F1"]
[null,231039,"2024-02-06","Fort. Großschwabhausen 1","ZLSG Berlstedt 1",null,null,"06.2.24:231039:Fort. Großschwabhausen 1:ZLSG Berlstedt 1"]
[null,231040,"2024-02-06","Medizin Blankenhain 1","TTC Rot. Weimar V1",null,null,"06.2.24:231040:Medizin Blankenhain 1:TTC Rot. Weimar V1"]
[null,231041,"2024-02-19","ZLSG Wormstedt 1","SG Rot.Tannroda 1",null,null,"19.2.24:231041:ZLSG Wormstedt 1:SG Rot.Tannroda 1"]
[null,231042,"2024-02-22","BSV 04 Bad Berka F1","Fort. Großschwabhausen 1",null,null,"22.2.24:231042:BSV 04 Bad Berka F1:Fort. Großschwabhausen 1"]
[null,231043,"2024-02-22","ZLSG Berlstedt 1","Medizin Blankenhain 1",null,null,"22.2.24:231043:ZLSG Berlstedt 1:Medizin Blankenhain 1"]
[null,231044,"2024-02-20","TTC Rot. Weimar V1","KSSV Victoria Weimar 1",null,null,"20.2.24:231044:TTC Rot. Weimar V1:KSSV Victoria Weimar 1"]
[null,231045,"2024-02-27","Fort. Großschwabhausen 1","ZLSG Wormstedt 1",null,null,"27.2.24:231045:Fort. Großschwabhausen 1:ZLSG Wormstedt 1"]
[null,231046,"2024-02-27","Medizin Blankenhain 1","BSV 04 Bad Berka F1",null,null,"27.2.24:231046:Medizin Blankenhain 1:BSV 04 Bad Berka F1"]
[null,231047,"2024-02-27","TTC Rot. Weimar V1","ZLSG Berlstedt 1",null,null,"27.2.24:231047:TTC Rot. Weimar V1:ZLSG Berlstedt 1"]
[null,231048,"2024-03-01","KSSV Victoria Weimar 1","ZLSG Wormstedt 2",null,null,"01.3.24:231048:KSSV Victoria Weimar 1:ZLSG Wormstedt 2"]
[null,231049,"2024-03-04","ZLSG Wormstedt 1","Medizin Blankenhain 1",null,null,"04.3.24:231049:ZLSG Wormstedt 1:Medizin Blankenhain 1"]
[null,231050,"2024-03-07","BSV 04 Bad Berka F1","TTC Rot. Weimar V1",null,null,"07.3.24:231050:BSV 04 Bad Berka F1:TTC Rot. Weimar V1"]
[null,231051,"2024-03-07","ZLSG Berlstedt 1","KSSV Victoria Weimar 1",null,null,"07.3.24:231051:ZLSG Berlstedt 1:KSSV Victoria Weimar 1"]
[null,231052,"2024-03-07","ZLSG Wormstedt 2","SG Rot.Tannroda 1",null,null,"07.3.24:231052:ZLSG Wormstedt 2:SG Rot.Tannroda 1"]
[null,231053,"2024-03-12","TTC Rot. Weimar V1","ZLSG Wormstedt 1",null,null,"12.3.24:231053:TTC Rot. Weimar V1:ZLSG Wormstedt 1"]
[null,231054,"2024-03-14","ZLSG Berlstedt 1","BSV 04 Bad Berka F1",null,null,"14.3.24:231054:ZLSG Berlstedt 1:BSV 04 Bad Berka F1"]
[null,231055,"2024-03-12","Fort. Großschwabhausen 1","ZLSG Wormstedt 2",null,null,"12.3.24:231055:Fort. Großschwabhausen 1:ZLSG Wormstedt 2"]
[null,231056,"2024-03-15","KSSV Victoria Weimar 1","SG Rot.Tannroda 1",null,null,{"$f":"TEXT(C22,\"TT.M.JJ\")& \":\"&B22&\":\"&D22&\":\"&E22","v":"15.3.24:231056:KSSV Victoria Weimar 1:SG Rot.Tannroda 1"}]
[null,231057,"2024-03-18","ZLSG Wormstedt 1","ZLSG Berlstedt 1",null,null,"18.3.24:231057:ZLSG Wormstedt 1:ZLSG Berlstedt 1"]
[null,231058,"2024-03-21","BSV 04 Bad Berka F1","KSSV Victoria Weimar 1",null,null,"21.3.24:231058:BSV 04 Bad Berka F1:KSSV Victoria Weimar 1"]
[null,231059,"2024-03-21","ZLSG Wormstedt 2","Medizin Blankenhain 1",null,null,"21.3.24:231059:ZLSG Wormstedt 2:Medizin Blankenhain 1"]
[null,231060,"2024-03-22","SG Rot.Tannroda 1","Fort. Großschwabhausen 1",null,null,"22.3.24:231060:SG Rot.Tannroda 1:Fort. Großschwabhausen 1"]
[null,231061,"2024-04-11","BSV 04 Bad Berka F1","ZLSG Wormstedt 1",null,null,"11.4.24:231061:BSV 04 Bad Berka F1:ZLSG Wormstedt 1"]
[null,231062,"2024-04-09","TTC Rot. Weimar V1","ZLSG Wormstedt 2",null,null,"09.4.24:231062:TTC Rot. Weimar V1:ZLSG Wormstedt 2"]
[null,231063,"2024-04-09","Medizin Blankenhain 1","SG Rot.Tannroda 1",null,null,"09.4.24:231063:Medizin Blankenhain 1:SG Rot.Tannroda 1"]
[null,231064,"2024-04-12","KSSV Victoria Weimar 1","Fort. Großschwabhausen 1",null,null,"12.4.24:231064:KSSV Victoria Weimar 1:Fort. Großschwabhausen 1"]
[null,231065,"2024-04-15","ZLSG Wormstedt 1","KSSV Victoria Weimar 1",null,null,"15.4.24:231065:ZLSG Wormstedt 1:KSSV Victoria Weimar 1"]
[null,231066,"2024-04-18","ZLSG Wormstedt 2","ZLSG Berlstedt 1",null,null,"18.4.24:231066:ZLSG Wormstedt 2:ZLSG Berlstedt 1"]
[null,231067,"2024-04-19","SG Rot.Tannroda 1","TTC Rot. Weimar V1",null,null,"19.4.24:231067:SG Rot.Tannroda 1:TTC Rot. Weimar V1"]
[null,231068,"2024-04-16","Fort. Großschwabhausen 1","Medizin Blankenhain 1",null,null,"16.4.24:231068:Fort. Großschwabhausen 1:Medizin Blankenhain 1"]
[null,231066,"2024-04-25","BSV 04 Bad Berka F1","ZLSG Wormstedt 2",null,null,"25.4.24:231066:BSV 04 Bad Berka F1:ZLSG Wormstedt 2"]
[null,231067,"2024-04-25","ZLSG Berlstedt 1","SG Rot.Tannroda 1",null,null,"25.4.24:231067:ZLSG Berlstedt 1:SG Rot.Tannroda 1"]
[null,231068,"2024-04-23","TTC Rot. Weimar V1","Fort. Großschwabhausen 1",null,null,"23.4.24:231068:TTC Rot. Weimar V1:Fort. Großschwabhausen 1"]
[null,231069,"2024-04-26","KSSV Victoria Weimar 1","Medizin Blankenhain 1",null,null,"26.4.24:231069:KSSV Victoria Weimar 1:Medizin Blankenhain 1"]
[null,123456,"POKAL 3er","für Pokalspiel die 123456 wählen",null,null,null,"POKAL 3er:123456:für Pokalspiel die 123456 wählen:"]

{"sheet":"Spiele Staffel 2","index":1,"n_rows":48,"n_cols":8,"rows_kept":48,"cut":false,"hidden":true,"merged":[]}
["Mannschaftsmeisterschaft 2.Liga - Hinrunde",null,null,null,null,null,null,"STAFFEL 2 Spiel Wählen"]
["ST","Nr.","Datum","Gastgeber","Gast",null,null,"POKAL 3er:123456:für Pokalspiel"]
[10,232046,"2024-02-06","TTC Rot. Weimar V3","TTC Rot. Weimar V2",null,null,{"$f":"TEXT(C3,\"TT.M.JJ\")& \":\"&B3&\":\"&D3&\":\"&E3","v":"06.2.24:232046:TTC Rot. Weimar V3:TTC Rot. Weimar V2"}]
[null,232047,"2024-02-09","TTC Rot. Weimar V4","Fort. Großschwabhausen 2",null,null,"09.2.24:232047:TTC Rot. Weimar V4:Fort. Großschwabhausen 2"]
[null,232048,"2024-02-08","TSV 1914 Berlstedt 2","SG Rot. Tannroda 2",null,null,"08.2.24:232048:TSV 1914 Berlstedt 2:SG Rot. Tannroda 2"]
[null,232049,"2024-02-08","BSV 04 Bad Berka F2","TSG Apolda 1",null,null,"08.2.24:232049:BSV 04 Bad Berka F2:TSG Apolda 1"]
[null,232050,"2024-02-05","ZLSG Wormstedt 3","Med. Blankenhain 2",null,null,"05.2.24:232050:ZLSG Wormstedt 3:Med. Blankenhain 2"]
[11,232051,"2024-02-23","TTC Rot. Weimar V2","TTC Rot. Weimar V4",null,null,"23.2.24:232051:TTC Rot. Weimar V2:TTC Rot. Weimar V4"]
[null,232052,"2024-02-21","Fort. Großschwabhausen 2","TSV 1914 Berlstedt 2",null,null,"21.2.24:232052:Fort. Großschwabhausen 2:TSV 1914 Berlstedt 2"]
[null,232053,"2024-02-23","SG Rot. Tannroda 2","BSV 04 Bad Berka F2",null,null,"23.2.24:232053:SG Rot. Tannroda 2:BSV 04 Bad Berka F2"]
[null,232054,"2024-02-23","TSG Apolda 1","ZLSG Wormstedt 3",null,null,"23.2.24:232054:TSG Apolda 1:ZLSG Wormstedt 3"]
[null,232055,"2024-02-23","Med. Blankenhain 2","TTC Rot. Weimar V3",null,null,"23.2.24:232055:Med. Blankenhain 2:TTC Rot. Weimar V3"]
[12,232056,"2024-02-29","TSV 1914 Berlstedt 2","TTC Rot. Weimar V2",null,null,"29.2.24:232056:TSV 1914 Berlstedt 2:TTC Rot. Weimar V2"]
[null,232057,"2024-02-29","BSV 04 Bad Berka F2","Fort. Großschwabhausen 2",null,null,"29.2.24:232057:BSV 04 Bad Berka F2:Fort. Großschwabhausen 2"]
[null,232058,"2024-02-26","ZLSG Wormstedt 3","SG Rot. Tannroda 2",null,null,"26.2.24:232058:ZLSG Wormstedt 3:SG Rot. Tannroda 2"]
[null,232059,"2024-03-01","Med. Blankenhain 2","TSG Apolda 1",null,null,"01.3.24:232059:Med. Blankenhain 2:TSG Apolda 1"]
[null,232060,"2024-02-27","TTC Rot. Weimar V3","TTC Rot. Weimar V4",null,null,"27.2.24:232060:TTC Rot. Weimar V3:TTC Rot. Weimar V4"]
[13,232061,"2024-03-08","TTC Rot. Weimar V2","BSV 04 Bad Berka F2",null,null,"08.3.24:232061:TTC Rot. Weimar V2:BSV 04 Bad Berka F2"]
[null,232062,"2024-03-06","Fort. Großschwabhausen 2","ZLSG Wormstedt 3",null,null,"06.3.24:232062:Fort. Großschwabhausen 2:ZLSG Wormstedt 3"]
[null,232063,"2024-03-08","SG Rot. Tannroda 2","Med. Blankenhain 2",null,null,"08.3.24:232063:SG Rot. Tannroda 2:Med. Blankenhain 2"]
[null,232064,"2024-03-08","TSG Apolda 1","TTC Rot. Weimar V3",null,null,"08.3.24:232064:TSG Apolda 1:TTC Rot. Weimar V3"]
[null,232065,"2024-03-08","TTC Rot. Weimar V4","TSV 1914 Berlstedt 2",null,null,{"$f":"TEXT(C22,\"TT.M.JJ\")& \":\"&B22&\":\"&D22&\":\"&E22","v":"08.3.24:232065:TTC Rot. Weimar V4:TSV 1914 Berlstedt 2"}]
[14,232066,"2024-03-11","ZLSG Wormstedt 3","TTC Rot. Weimar V2",null,null,"11.3.24:232066:ZLSG Wormstedt 3:TTC Rot. Weimar V2"]
[null,232067,"2024-03-15","Med. Blankenhain 2","Fort. Großschwabhausen 2",null,null,"15.3.24:232067:Med. Blankenhain 2:Fort. Großschwabhausen 2"]
[null,232068,"2024-03-15","TSG Apolda 1","SG Rot. Tannroda 2",null,null,"15.3.24:232068:TSG Apolda 1:SG Rot. Tannroda 2"]
[null,232069,"2024-03-14","BSV 04 Bad Berka F2","TTC Rot. Weimar V4",null,null,"14.3.24:232069:BSV 04 Bad Berka F2:TTC Rot. Weimar V4"]
[null,232070,"2024-03-12","TTC Rot. Weimar V3","TSV 1914 Berlstedt 2",null,null,"12.3.24:232070:TTC Rot. Weimar V3:TSV 1914 Berlstedt 2"]
[15,232071,"2024-03-22","TTC Rot. Weimar V2","Med. Blankenhain 2",null,null,"22.3.24:232071:TTC Rot. Weimar V2:Med. Blankenhain 2"]
[null,232072,"2024-03-20","Fort. Großschwabhausen 2","TSG Apolda 1",null,null,"20.3.24:232072:Fort. Großschwabhausen 2:TSG Apolda 1"]
[null,232073,"2024-03-22","SG Rot. Tannroda 2","TTC Rot. Weimar V3",null,null,"22.3.24:232073:SG Rot. Tannroda 2:TTC Rot. Weimar V3"]
[null,232074,"2024-03-22","TTC Rot. Weimar V4","ZLSG Wormstedt 3",null,null,"22.3.24:232074:TTC Rot. Weimar V4:ZLSG Wormstedt 3"]
[null,232075,"2024-03-21","TSV 1914 Berlstedt 2","BSV 04 Bad Berka F2",null,null,"21.3.24:232075:TSV 1914 Berlstedt 2:BSV 04 Bad Berka F2"]
[16,232076,45394,"TSG Apolda 1","TTC Rot. Weimar V2",null,null,"12.4.24:232076:TSG Apolda 1:TTC Rot. Weimar V2"]
[null,232077,45394,"SG Rot. Tannroda 2","Fort. Großschwabhausen 2",null,null,"12.4.24:232077:SG Rot. Tannroda 2:Fort. Großschwabhausen 2"]
[null,232078,45394,"Med. Blankenhain 2","TTC Rot. Weimar V4",null,null,"12.4.24:232078:Med. Blankenhain 2:TTC Rot. Weimar V4"]
[null,232079,45390,"ZLSG Wormstedt 3","TSV 1914 Berlstedt 2",null,null,"08.4.24:232079:ZLSG Wormstedt 3:TSV 1914 Berlstedt 2"]
[null,232080,45391,"TTC Rot. Weimar V3","BSV 04 Bad Berka F2",null,null,"09.4.24:232080:TTC Rot. Weimar V3:BSV 04 Bad Berka F2"]
[17,232081,45401,"TTC Rot. Weimar V2","SG Rot. Tannroda 2",null,null,"19.4.24:232081:TTC Rot. Weimar V2:SG Rot. Tannroda 2"]
[null,232082,45399,"Fort. Großschwabhausen 2","TTC Rot. Weimar V3",null,null,"17.4.24:232082:Fort. Großschwabhausen 2:TTC Rot. Weimar V3"]
[null,232083,45401,"TTC Rot. Weimar V4","TSG Apolda 1",null,null,"19.4.24:232083:TTC Rot. Weimar V4:TSG Apolda 1"]
[null,232084,45400,"TSV 1914 Berlstedt 2","Med. Blankenhain 2",null,null,"18.4.24:232084:TSV 1914 Berlstedt 2:Med. Blankenhain 2"]
[null,232085,45400,"BSV 04 Bad Berka F2","ZLSG Wormstedt 3",null,null,"18.4.24:232085:BSV 04 Bad Berka F2:ZLSG Wormstedt 3"]
[18,232086,45406,"Fort. Großschwabhausen 2","TTC Rot. Weimar V2",null,null,"24.4.24:232086:Fort. Großschwabhausen 2:TTC Rot. Weimar V2"]
[null,232087,45408,"SG Rot. Tannroda 2","TTC Rot. Weimar V4",null,null,"26.4.24:232087:SG Rot. Tannroda 2:TTC Rot. Weimar V4"]
[null,232088,45408,"TSG Apolda 1","TSV 1914 Berlstedt 2",null,null,"26.4.24:232088:TSG Apolda 1:TSV 1914 Berlstedt 2"]
[null,232089,45408,"Med. Blankenhain 2","BSV 04 Bad Berka F2",null,null,"26.4.24:232089:Med. Blankenhain 2:BSV 04 Bad Berka F2"]
[null,232090,45405,"TTC Rot. Weimar V3","ZLSG Wormstedt 3",null,null,"23.4.24:232090:TTC Rot. Weimar V3:ZLSG Wormstedt 3"]
[null,123456,"POKAL 3er","für Pokalspiel die 123456 wählen",null,null,null,{"$f":"TEXT(C48,\"TT.M.JJ\")& \":\"&B48&\":\"&D48&\":\"&E48","v":"POKAL 3er:123456:für Pokalspiel die 123456 wählen:"}]

{"sheet":"Spiele Staffel 3","index":2,"n_rows":48,"n_cols":8,"rows_kept":48,"cut":false,"hidden":true,"merged":[]}
["Mannschaftsmeisterschaft 3.Liga ",null,null,null,null,null,null,"STAFFEL 3 Spiel Wählen"]
["ST","Nr.","Datum","Gastgeber","Gast",null,null,"POKAL 3er:123456:für Pokalspiel"]
[null,233046,"2024-02-08","Fort. Großschwabhausen 3","KSSV Victoria Weimar 2",null,null,{"$f":"TEXT(C3,\"TT.M.JJ\")& \":\"&B3&\":\"&D3&\":\"&E3","v":"08.2.24:233046:Fort. Großschwabhausen 3:KSSV Victoria Weimar 2"}]
[null,233047,"2024-02-08","BSV 04 Bad  Berka F3","TSV 1914 Berlstedt 3",null,null,"08.2.24:233047:BSV 04 Bad  Berka F3:TSV 1914 Berlstedt 3"]
[null,233048,"2024-02-09","TSG Apolda 2","Weimarer SV",null,null,"09.2.24:233048:TSG Apolda 2:Weimarer SV"]
[null,233049,"2024-02-09","SG Rot.Tannroda 4","SG Rot. Tannroda 3",null,null,"09.2.24:233049:SG Rot.Tannroda 4:SG Rot. Tannroda 3"]
[null,233050,"2024-02-06","Musashi Weimar","ZLSG Wormstedt 4",null,null,"06.2.24:233050:Musashi Weimar:ZLSG Wormstedt 4"]
[null,233051,"2024-02-21","KSSV Victoria Weimar 2","BSV 04 Bad  Berka F3",null,null,"21.2.24:233051:KSSV Victoria Weimar 2:BSV 04 Bad  Berka F3"]
[null,233052,"2024-02-22","TSV 1914 Berlstedt 3","TSG Apolda 2",null,null,"22.2.24:233052:TSV 1914 Berlstedt 3:TSG Apolda 2"]
[null,233053,"2024-02-22","Weimarer SV","SG Rot.Tannroda 4",null,null,"22.2.24:233053:Weimarer SV:SG Rot.Tannroda 4"]
[null,233054,"2024-02-23","SG Rot. Tannroda 3","Musashi Weimar",null,null,"23.2.24:233054:SG Rot. Tannroda 3:Musashi Weimar"]
[null,233055,"2024-02-22","ZLSG Wormstedt 4","Fort. Großschwabhausen 3",null,null,"22.2.24:233055:ZLSG Wormstedt 4:Fort. Großschwabhausen 3"]
[null,233056,"2024-03-01","TSG Apolda 2","KSSV Victoria Weimar 2",null,null,"01.3.24:233056:TSG Apolda 2:KSSV Victoria Weimar 2"]
[null,233057,"2024-03-01","SG Rot.Tannroda 4","TSV 1914 Berlstedt 3",null,null,"01.3.24:233057:SG Rot.Tannroda 4:TSV 1914 Berlstedt 3"]
[null,233058,"2024-02-27","Musashi Weimar","Weimarer SV",null,null,"27.2.24:233058:Musashi Weimar:Weimarer SV"]
[null,233059,"2024-02-29","ZLSG Wormstedt 4","SG Rot. Tannroda 3",null,null,"29.2.24:233059:ZLSG Wormstedt 4:SG Rot. Tannroda 3"]
[null,233060,"2024-02-29","Fort. Großschwabhausen 3","BSV 04 Bad  Berka F3",null,null,"29.2.24:233060:Fort. Großschwabhausen 3:BSV 04 Bad  Berka F3"]
[null,233061,"2024-03-06","KSSV Victoria Weimar 2","SG Rot.Tannroda 4",null,null,"06.3.24:233061:KSSV Victoria Weimar 2:SG Rot.Tannroda 4"]
[null,233062,"2024-03-07","TSV 1914 Berlstedt 3","Musashi Weimar",null,null,"07.3.24:233062:TSV 1914 Berlstedt 3:Musashi Weimar"]
[null,233063,"2024-03-07","Weimarer SV","ZLSG Wormstedt 4",null,null,{"$f":"TEXT(C20,\"TT.M.JJ\")& \":\"&B20&\":\"&D20&\":\"&E20","v":"07.3.24:233063:Weimarer SV:ZLSG Wormstedt 4"}]
[null,233064,"2024-03-08","SG Rot. Tannroda 3","Fort. Großschwabhausen 3",null,null,"08.3.24:233064:SG Rot. Tannroda 3:Fort. Großschwabhausen 3"]
[null,233065,"2024-03-07","BSV 04 Bad  Berka F3","TSG Apolda 2",null,null,"07.3.24:233065:BSV 04 Bad  Berka F3:TSG Apolda 2"]
[null,233066,"2024-03-12","Musashi Weimar","KSSV Victoria Weimar 2",null,null,{"$f":"TEXT(C23,\"TT.M.JJ\")& \":\"&B23&\":\"&D23&\":\"&E23","v":"12.3.24:233066:Musashi Weimar:KSSV Victoria Weimar 2"}]
[null,233067,"2024-03-14","ZLSG Wormstedt 4","TSV 1914 Berlstedt 3",null,null,"14.3.24:233067:ZLSG Wormstedt 4:TSV 1914 Berlstedt 3"]
[null,233068,"2024-03-15","SG Rot. Tannroda 3","Weimarer SV",null,null,"15.3.24:233068:SG Rot. Tannroda 3:Weimarer SV"]
[null,233069,"2024-03-15","SG Rot.Tannroda 4","BSV 04 Bad  Berka F3",null,null,"15.3.24:233069:SG Rot.Tannroda 4:BSV 04 Bad  Berka F3"]
[null,233070,"2024-03-14","Fort. Großschwabhausen 3","TSG Apolda 2",null,null,"14.3.24:233070:Fort. Großschwabhausen 3:TSG Apolda 2"]
[null,233071,"2024-03-20","KSSV Victoria Weimar 2","ZLSG Wormstedt 4",null,null,"20.3.24:233071:KSSV Victoria Weimar 2:ZLSG Wormstedt 4"]
[null,233072,"2024-03-21","TSV 1914 Berlstedt 3","SG Rot. Tannroda 3",null,null,"21.3.24:233072:TSV 1914 Berlstedt 3:SG Rot. Tannroda 3"]
[null,233073,"2024-03-21","Weimarer SV","Fort. Großschwabhausen 3",null,null,"21.3.24:233073:Weimarer SV:Fort. Großschwabhausen 3"]
[null,233074,"2024-03-21","BSV 04 Bad  Berka F3","Musashi Weimar",null,null,"21.3.24:233074:BSV 04 Bad  Berka F3:Musashi Weimar"]
[null,233075,"2024-03-22","TSG Apolda 2","SG Rot.Tannroda 4",null,null,"22.3.24:233075:TSG Apolda 2:SG Rot.Tannroda 4"]
[null,233076,"2024-04-12","SG Rot. Tannroda 3","KSSV Victoria Weimar 2",null,null,"12.4.24:233076:SG Rot. Tannroda 3:KSSV Victoria Weimar 2"]
[null,233077,"2024-04-11","Weimarer SV","TSV 1914 Berlstedt 3",null,null,"11.4.24:233077:Weimarer SV:TSV 1914 Berlstedt 3"]
[null,233078,"2024-04-11","ZLSG Wormstedt 4","BSV 04 Bad  Berka F3",null,null,"11.4.24:233078:ZLSG Wormstedt 4:BSV 04 Bad  Berka F3"]
[null,233079,"2024-04-09","Musashi Weimar","TSG Apolda 2",null,null,"09.4.24:233079:Musashi Weimar:TSG Apolda 2"]
[null,233080,"2024-04-11","Fort. Großschwabhausen 3","SG Rot.Tannroda 4",null,null,"11.4.24:233080:Fort. Großschwabhausen 3:SG Rot.Tannroda 4"]
[null,233081,"2024-04-17","KSSV Victoria Weimar 2","Weimarer SV",null,null,"17.4.24:233081:KSSV Victoria Weimar 2:Weimarer SV"]
[null,233082,"2024-04-18","TSV 1914 Berlstedt 3","Fort. Großschwabhausen 3",null,null,"18.4.24:233082:TSV 1914 Berlstedt 3:Fort. Großschwabhausen 3"]
[null,233083,"2024-04-18","BSV 04 Bad  Berka F3","SG Rot. Tannroda 3",null,null,"18.4.24:233083:BSV 04 Bad  Berka F3:SG Rot. Tannroda 3"]
[null,233084,"2024-04-19","TSG Apolda 2","ZLSG Wormstedt 4",null,null,"19.4.24:233084:TSG Apolda 2:ZLSG Wormstedt 4"]
[null,233085,"2024-04-19","SG Rot.Tannroda 4","Musashi Weimar",null,null,"19.4.24:233085:SG Rot.Tannroda 4:Musashi Weimar"]
[null,233086,"2024-04-25","TSV 1914 Berlstedt 3","KSSV Victoria Weimar 2",null,null,"25.4.24:233086:TSV 1914 Berlstedt 3:KSSV Victoria Weimar 2"]
[null,233087,"2024-04-25","Weimarer SV","BSV 04 Bad  Berka F3",null,null,"25.4.24:233087:Weimarer SV:BSV 04 Bad  Berka F3"]
[null,233088,"2024-04-26","SG Rot. Tannroda 3","TSG Apolda 2",null,null,"26.4.24:233088:SG Rot. Tannroda 3:TSG Apolda 2"]
[null,233089,"2024-04-25","ZLSG Wormstedt 4","SG Rot.Tannroda 4",null,null,"25.4.24:233089:ZLSG Wormstedt 4:SG Rot.Tannroda 4"]
[null,233090,"2024-04-25","Fort. Großschwabhausen 3","Musashi Weimar",null,null,"25.4.24:233090:Fort. Großschwabhausen 3:Musashi Weimar"]
[null,123456,"POKAL 3er","für Pokalspiel die 123456 wählen"]

{"sheet":"Spiele Staffel 4","index":3,"n_rows":31,"n_cols":8,"rows_kept":31,"cut":false,"hidden":true,"merged":[]}
["Mannschaftsmeisterschaft 4.Liga - ",null,null,null,null,null,null,"STAFFEL 4 Spiel Wählen"]
["ST","Nr.","Datum","Gastgeber","Gast",null,null,"POKAL 3er:123456:für Pokalspiel"]
[null,214029,"2022-02-11","SG Rot. Tannroda 4   ","TSV Berlstedt 4",null,null,{"$f":"TEXT(C3,\"TT.M.JJ\")& \":\"&B3&\":\"&D3&\":\"&E3","v":"11.2.22:214029:SG Rot. Tannroda 4   :TSV Berlstedt 4"}]
[null,214030,"2022-02-10","F. Großschwabhausen 4  ","BSV 04 Bad Berka F4",null,null,"10.2.22:214030:F. Großschwabhausen 4  :BSV 04 Bad Berka F4"]
[null,214031,"2022-02-09","KSSV Victoria Weimar 3  ","TTC Rot. Weimar V5",null,null,"09.2.22:214031:KSSV Victoria Weimar 3  :TTC Rot. Weimar V5"]
[null,214032,"2022-02-08","Weimarer SV 2    ","ZLSG Wormstedt 5",null,null,"08.2.22:214032:Weimarer SV 2    :ZLSG Wormstedt 5"]
[null,214033,"2022-02-24","TSV Berlstedt 4   ","F. Großschwabhausen 4",null,null,"24.2.22:214033:TSV Berlstedt 4   :F. Großschwabhausen 4"]
[null,214034,"2022-02-21","BSV 04 Bad Berka F4  ","KSSV Victoria Weimar 3",null,null,"21.2.22:214034:BSV 04 Bad Berka F4  :KSSV Victoria Weimar 3"]
[null,214035,"2022-02-25","TTC Rot. Weimar V5   ","Weimarer SV 2",null,null,"25.2.22:214035:TTC Rot. Weimar V5   :Weimarer SV 2"]
[null,214036,"2022-02-21","ZLSG Wormstedt 5   ","SG Rot. Tannroda 4",null,null,"21.2.22:214036:ZLSG Wormstedt 5   :SG Rot. Tannroda 4"]
[null,214037,"2022-03-02","KSSV Victoria Weimar 3  ","TSV Berlstedt 4",null,null,"02.3.22:214037:KSSV Victoria Weimar 3  :TSV Berlstedt 4"]
[null,214038,"2022-03-01","Weimarer SV 2    ","BSV 04 Bad Berka F4",null,null,"01.3.22:214038:Weimarer SV 2    :BSV 04 Bad Berka F4"]
[null,214039,"2022-02-28","ZLSG Wormstedt 5   ","TTC Rot. Weimar V5",null,null,"28.2.22:214039:ZLSG Wormstedt 5   :TTC Rot. Weimar V5"]
[null,214040,"2022-03-04","SG Rot. Tannroda 4   ","F. Großschwabhausen 4",null,null,"04.3.22:214040:SG Rot. Tannroda 4   :F. Großschwabhausen 4"]
[null,214041,"2022-03-10","TSV Berlstedt 4   ","Weimarer SV 2",null,null,"10.3.22:214041:TSV Berlstedt 4   :Weimarer SV 2"]
[null,214042,"2022-03-07","BSV 04 Bad Berka F4  ","ZLSG Wormstedt 5",null,null,"07.3.22:214042:BSV 04 Bad Berka F4  :ZLSG Wormstedt 5"]
[null,214043,"2022-03-11","TTC Rot. Weimar V5   ","SG Rot. Tannroda 4",null,null,"11.3.22:214043:TTC Rot. Weimar V5   :SG Rot. Tannroda 4"]
[null,214044,"2022-03-10","F. Großschwabhausen 4  ","KSSV Victoria Weimar 3",null,null,"10.3.22:214044:F. Großschwabhausen 4  :KSSV Victoria Weimar 3"]
[null,214045,"2022-03-14","ZLSG Wormstedt 5   ","TSV Berlstedt 4",null,null,"14.3.22:214045:ZLSG Wormstedt 5   :TSV Berlstedt 4"]
[null,214046,"2022-03-18","TTC Rot. Weimar V5   ","BSV 04 Bad Berka F4",null,null,"18.3.22:214046:TTC Rot. Weimar V5   :BSV 04 Bad Berka F4"]
[null,214047,"2022-03-15","Weimarer SV 2    ","F. Großschwabhausen 4",null,null,"15.3.22:214047:Weimarer SV 2    :F. Großschwabhausen 4"]
[null,214048,"2022-03-18","SG Rot. Tannroda 4   ","KSSV Victoria Weimar 3",null,null,"18.3.22:214048:SG Rot. Tannroda 4   :KSSV Victoria Weimar 3"]
[null,214049,"2022-03-24","TSV Berlstedt 4   ","TTC Rot. Weimar V5",null,null,"24.3.22:214049:TSV Berlstedt 4   :TTC Rot. Weimar V5"]
[null,214050,"2022-03-21","BSV 04 Bad Berka F4  ","SG Rot. Tannroda 4",null,null,"21.3.22:214050:BSV 04 Bad Berka F4  :SG Rot. Tannroda 4"]
[null,214051,"2022-03-23","KSSV Victoria Weimar 3  ","Weimarer SV 2",null,null,"23.3.22:214051:KSSV Victoria Weimar 3  :Weimarer SV 2"]
[null,214052,"2022-03-24","F. Großschwabhausen 4  ","ZLSG Wormstedt 5",null,null,"24.3.22:214052:F. Großschwabhausen 4  :ZLSG Wormstedt 5"]
[null,214053,"2022-03-28","BSV 04 Bad Berka F4  ","TSV Berlstedt 4",null,null,"28.3.22:214053:BSV 04 Bad Berka F4  :TSV Berlstedt 4"]
[null,214054,"2022-04-01","TTC Rot. Weimar V5   ","F. Großschwabhausen 4",null,null,"01.4.22:214054:TTC Rot. Weimar V5   :F. Großschwabhausen 4"]
[null,214055,"2022-03-28","ZLSG Wormstedt 5   ","KSSV Victoria Weimar 3",null,null,"28.3.22:214055:ZLSG Wormstedt 5   :KSSV Victoria Weimar 3"]
[null,214056,"2022-04-01","SG Rot. Tannroda 4 ","Weimarer SV 2",null,null,"01.4.22:214056:SG Rot. Tannroda 4 :Weimarer SV 2"]
[null,123456,"POKAL 3er","für Pokalspiel die 123456 wählen",null,null,null,"POKAL 3er:123456:für Pokalspiel die 123456 wählen:"]

{"sheet":"Mannschaften","index":4,"n_rows":30,"n_cols":7,"rows_kept":30,"cut":false,"hidden":true,"merged":[]}
["Staffel1","Staffel2","Staffel3","Staffel4","Alle_Staffeln_Pokal"]
["BSV_04_Bad_Berka_F1","BSV_04_Bad_Berka_F2","BSV_04_Bad_Berka_F3",null,"BSV_04_Bad_Berka_F1",null,"Staffel1"]
["Fort._Großschwabhausen_1","Fort._Großschwabhausen_2","Fort._Großschwabhausen_3",null,"Fort._Großschwabhausen_1",null,"Staffel2"]
["KSSV_Victoria_Weimar_1","Medizin_Blankenhain_2","KSSV_Victoria_Weimar_2",null,"KSSV_Victoria_Weimar_1",null,"Staffel3"]
["Medizin_Blankenhain_1","SG_Rotation_Tannroda_2","Musashi_Weimar",null,"Medizin_Blankenhain_1",null,"Staffel4"]
["SG_Rotation_Tannroda_1","TSG_Apolda_1","SG_Rot._Tannroda_3",null,"SG_Rotation_Tannroda_1",null,"Alle_Staffeln_Pokal"]
["TSV_1914_Berlstedt_1","TSV_1914_Berlstedt_2","SG_Rot._Tannroda_4",null,"TSV_1914_Berlstedt_1"]
["TTC_Rotation_Weimar_V1","TTC_Rotation_Weimar_V2","TSG_Apolda_2",null,"TTC_Rotation_Weimar_V1"]
["ZLSG_Wormstedt_1","TTC_Rotation_Weimar_V3","TSV_1914_Berlstedt_3",null,"ZLSG_Wormstedt_1"]
["ZLSG_Wormstedt_2","TTC_Rotation_Weimar_V4","Weimarer_SV_1",null,"ZLSG_Wormstedt_2"]
[null,"ZLSG_Wormstedt_3","ZLSG_Wormstedt_4",null,"BSV_04_Bad_Berka_F2"]
[null,null,null,null,"Fort._Großschwabhausen_2"]
[null,null,null,null,"Medizin_Blankenhain_2"]
[null,null,null,null,"SG_Rotation_Tannroda_2"]
[null,null,null,null,"TSG_Apolda_1"]
[null,null,null,null,"TSV_1914_Berlstedt_2"]
[null,null,null,null,"TTC_Rotation_Weimar_V2"]
[null,null,null,null,"TTC_Rotation_Weimar_V3"]
[null,null,null,null,"TTC_Rotation_Weimar_V4"]
[null,null,null,null,"ZLSG_Wormstedt_3"]
[null,null,null,null,"BSV_04_Bad_Berka_F3"]
[null,null,null,null,"Fort._Großschwabhausen_3"]
[null,null,null,null,"KSSV_Victoria_Weimar_2"]
[null,null,null,null,"Musashi_Weimar"]
[null,null,null,null,"SG_Rot._Tannroda_3"]
[null,null,null,null,"SG_Rot._Tannroda_4"]
[null,null,null,null,"TSG_Apolda_2"]
[null,null,null,null,"TSV_1914_Berlstedt_3"]
[null,null,null,null,"Weimarer_SV_1"]
[null,null,null,null,"ZLSG_Wormstedt_4"]

{"sheet":"Spielerzuordnung","index":5,"n_rows":469,"n_cols":6,"rows_kept":469,"cut":false,"hidden":true,"merged":[]}
["Name",null,"Koeff.","Verein"]
[null,null,null,null,null,"BSV_04_Bad_Berka_F1"]
["Röse, Peter",null,"4,0 (QTTR 1645)","BSV_04_Bad_Berka_F1",null,{"$f":"A3&B3&\" :\"&LEFT(C3,10)","v":"Röse, Peter :4,0 (QTTR "}]
["Plomitzer, Thomas",null,"Q 1525","BSV_04_Bad_Berka_F1",null,{"$f":"A4&B4&\" :\"&LEFT(C4,10)","v":"Plomitzer, Thomas :Q 1525"}]
["Kallenbach, Rainer",null,3,"BSV_04_Bad_Berka_F1",null,"Kallenbach, Rainer :3"]
["Wollmann, Dirk",null,1.895,"BSV_04_Bad_Berka_F1",null,"Wollmann, Dirk :1,895"]
["Ersatz1",null,null,null,null,{"$f":"A7&B7&\" :\"&LEFT(C7,10)","v":"Ersatz1 :"}]
["Ersatz2",null,null,null,null,{"$f":"A8&B8&\" :\"&LEFT(C8,10)","v":"Ersatz2 :"}]
["Ersatz3",null,null,null,null,"Ersatz3 :"]
["Ersatz4",null,null,null,null,"BSV_04_Bad_Berka_F2"]
["Simon, Lennard",null,"3,158 (22/23)","BSV_04_Bad_Berka_F2",null,"Simon, Lennard :3,158 (22/"]
["Klos, Heiko"," ",2.9089999999999998,"BSV_04_Bad_Berka_F2",null,{"$f":"A12&B12&\" :\"&LEFT(C12,10)","v":"Klos, Heiko  :2,909"}]
["Michel, Horst",null,2.7370000000000001,"BSV_04_Bad_Berka_F2",null,"Michel, Horst :2,737"]
["Pappenberg, Jan",null,2.6669999999999998,"BSV_04_Bad_Berka_F2",null,"Pappenberg, Jan :2,667"]
["König, Thomas",null,2.476,"BSV_04_Bad_Berka_F2",null,"König, Thomas :2,476"]
["Quett, Noah",null,2,"BSV_04_Bad_Berka_F2",null,{"$f":"A16&B16&\" :\"&LEFT(C16,10)","v":"Quett, Noah :2"}]
["Wiede, Luise",null,0,"BSV_04_Bad_Berka_F2",null,{"$f":"A17&B17&\" :\"&LEFT(C17,10)","v":"Wiede, Luise :0"}]
["Ersatz1",null,null,"BSV_04_Bad_Berka_F2",null,{"$f":"A18&B18&\" :\"&LEFT(C18,10)","v":"Ersatz1 :"}]
["Ersatz2",null,null,null,null,"Ersatz2 :"]
["Ersatz3",null,null,null,null,"Ersatz3 :"]
["Ersatz4",null,null,null,null,"Ersatz4 :"]
[null,null,null,null,null,"Fort._Großschwabhausen_1"]
["Nitsche, Frederik",null,3.4289999999999998,"Fort._Großschwabhausen_1",null,"Nitsche, Frederik :3,429"]
["Grau, Kevin",null,3.4,"Fort._Großschwabhausen_1",null,"Grau, Kevin :3,4"]
["Dabelsteen, Frank",null,3.3039999999999998,"Fort._Großschwabhausen_1",null,"Dabelsteen, Frank :3,304"]
["Blume, Thomas",null,1.091,"Fort._Großschwabhausen_1",null,"Blume, Thomas :1,091"]
["Ersatz1",null,null,null,null,"Ersatz1 :"]
["Ersatz2",null,null,null,null,"Ersatz2 :"]
["Ersatz3",null,null,null,null,"Ersatz3 :"]
["Ersatz4",null,null,null,null,"Ersatz4 :"]
[null,null,null,null,null,"Fortuna_Großschwabhausen_2"]
["Brückner, Jürgen",null,3.556,"Fort._Großschwabhausen_2",null,"Brückner, Jürgen :3,556"]
["Luu, Dung",null,2.609,"Fort._Großschwabhausen_2",null,"Luu, Dung :2,609"]
["Wenke, Wolfram",null,1.8480000000000001,"Fort._Großschwabhausen_2",null,"Wenke, Wolfram :1,848"]
["Brückner, Steffen",null,1.2310000000000001,"Fort._Großschwabhausen_2",null,"Brückner, Steffen :1,231"]
["Ersatz1",null,null,"Fort._Großschwabhausen_2",null,"Ersatz1 :"]
["Ersatz2",null,null,"Fort._Großschwabhausen_2",null,"Ersatz2 :"]
["Ersatz3",null,null,"Fort._Großschwabhausen_2",null,"Ersatz3 :"]
[null,null,null,null,null,"Medizin_Blankenhain_1"]
["Geißler, Robert",null,"3,083 (22/23)","Medizin_Blankenhain_1",null,"Geißler, Robert :3,083 (22/"]
["Arenswald, Ralf",null,1.4550000000000001,"Medizin_Blankenhain_1",null,"Arenswald, Ralf :1,455"]
["Grau, Detlef",null,"1,385 (22/23)","Medizin_Blankenhain_1",null,"Grau, Detlef :1,385 (22/"]
["Schramke, Michael",null,0.88900000000000001,"Medizin_Blankenhain_1",null,{"$f":"A43&B43&\" :\"&LEFT(C43,10)","v":"Schramke, Michael :0,889"}]
["Eckardt, Hans-Peter",null,"0,824 (21/22)","Medizin_Blankenhain_1",null,"Eckardt, Hans-Peter :0,824 (21/"]
["Ersatz1",null,null,"Medizin_Blankenhain_1",null,{"$f":"A45&B45&\" :\"&LEFT(C45,10)","v":"Ersatz1 :"}]
["Ersatz2",null," ","Medizin_Blankenhain_1",null,"Ersatz2 : "]
["Ersatz3",null,null,"Medizin_Blankenhain_1",null,"Ersatz3 :"]
["Ersatz4",null,null,"Medizin_Blankenhain_1",null,"Ersatz4 :"]
["Ersatz5",null,null,"Medizin_Blankenhain_1",null,"Ersatz5 :"]
[null,null,null,null,null,"SG_Rotation_Tannroda_2"]
["Süß, Ronald",null,3.4119999999999999,"SG_Rotation_Tannroda_2",null,"Süß, Ronald :3,412"]
["Schwager, Matthias",null,1.571,"SG_Rotation_Tannroda_2",null,"Schwager, Matthias :1,571"]
["Wattenbach, Klaus",null,1.429,"SG_Rotation_Tannroda_2",null,"Wattenbach, Klaus :1,429"]
["Michaelis, Jörg",null,1.2,"SG_Rotation_Tannroda_2",null,"Michaelis, Jörg :1,2"]
["Ersatz1",null,null,"SG_Rotation_Tannroda_2",null,"Ersatz1 :"]
["Ersatz2",null,null,"SG_Rotation_Tannroda_2",null,"Ersatz2 :"]
["Ersatz3",null,null,"SG_Rotation_Tannroda_2",null,"Ersatz3 :"]
["Ersatz4",null,null,"SG_Rotation_Tannroda_2",null,"Ersatz4 :"]
[null,null,null,null,null,"SG_Rotation_Tannroda_1"]
["Wedekind, Frederick",null,3.4780000000000002,"SG_Rotation_Tannroda_1",null,"Wedekind, Frederick :3,478"]
["Gehrhardt, Christoph",null,2.5880000000000001,"SG_Rotation_Tannroda_1",null,"Gehrhardt, Christoph :2,588"]
["Singer, Nicklas",null,"2,333 (22/23)","SG_Rotation_Tannroda_1",null,"Singer, Nicklas :2,333 (22/"]
["Mendler, Uwe",null,2.1669999999999998,"SG_Rotation_Tannroda_1",null,"Mendler, Uwe :2,167"]
["Ersatz1",null,null,"SG_Rotation_Tannroda_1",null,"Ersatz1 :"]
["Ersatz2",null,null,"SG_Rotation_Tannroda_1",null,"Ersatz2 :"]
["Ersatz3",null,null,"SG_Rotation_Tannroda_1",null,"Ersatz3 :"]
["Ersatz4",null,null,"SG_Rotation_Tannroda_1",null,"Ersatz4 :"]
[null,null,null,null,null,"TSG_Apolda_1"]
["Seifarth Siegfried",null,3.5859999999999999,"TSG_Apolda_1",null,"Seifarth Siegfried :3,586"]
["Knobloch, Dirk",null,2,"TSG_Apolda_1",null,"Knobloch, Dirk :2"]
["Gast, Friedhelm",null,1.857,"TSG_Apolda_1",null,"Gast, Friedhelm :1,857"]
["Trepanowski, Jürgen",null,1.4670000000000001,"TSG_Apolda_1",null,"Trepanowski, Jürgen :1,467"]
["Ersatz1",null,null,"TSG_Apolda_1",null,{"$f":"A73&B73&\" :\"&LEFT(C73,10)","v":"Ersatz1 :"}]
["Ersatz2",null,null,"TSG_Apolda_1",null,"Ersatz2 :"]
["Ersatz3",null,null,"TSG_Apolda_1",null,"Ersatz3 :"]
["Ersatz4",null,null,"TSG_Apolda_1",null,"Ersatz4 :"]
[null,null,null,null,null,"TSV_1914_Berlstedt_1"]
["Schröter, Jörg",null,3.294,"TSV_1914_Berlstedt_1",null,{"$f":"A78&B78&\" :\"&LEFT(C78,10)","v":"Schröter, Jörg :3,294"}]
["Danzer, Stefan",null,2.9089999999999998,"TSV_1914_Berlstedt_1",null,"Danzer, Stefan :2,909"]
["Knobloch, Michael",null,2.8,"TSV_1914_Berlstedt_1",null,"Knobloch, Michael :2,8"]
["Pfaffe,  Wolfgang",null,1.2629999999999999,"TSV_1914_Berlstedt_1",null,"Pfaffe,  Wolfgang :1,263"]
["Ersatz1",null,null,"TSV_1914_Berlstedt_1",null,{"$f":"A82&B82&\" :\"&LEFT(C82,10)","v":"Ersatz1 :"}]
["Ersatz2",null,null,"TSV_1914_Berlstedt_1",null,"Ersatz2 :"]
["Ersatz3",null,null,"TSV_1914_Berlstedt_1",null,"Ersatz3 :"]
["Ersatz4",null,null,"TSV_1914_Berlstedt_1",null,"Ersatz4 :"]
["Ersatz5",null,null,"TSV_1914_Berlstedt_1",null,"Ersatz5 :"]
[null,null,null,null,null,"TTC_Rotation_Weimar_V1"]
["Hasenauer, Christof",null,"3,660 (21/22)","TTC_Rotation_Weimar_V1",null,{"$f":"A88&B88&\" :\"&LEFT(C88,10)","v":"Hasenauer, Christof :3,660 (21/"}]
["Klenner, Thomas",null,"2,759 (22/23)","TTC_Rotation_Weimar_V1",null,"Klenner, Thomas :2,759 (22/"]
["Vinz, Thomas",null,2.222,"TTC_Rotation_Weimar_V1",null,"Vinz, Thomas :2,222"]
["Burschberg, Swen",null,"2,061 (22/23)","TTC_Rotation_Weimar_V1",null,{"$f":"A91&B91&\" :\"&LEFT(C91,10)","v":"Burschberg, Swen :2,061 (22/"}]
["Würzburg, Martin",null,1.7390000000000001,"TTC_Rotation_Weimar_V1",null,{"$f":"A92&B92&\" :\"&LEFT(C92,10)","v":"Würzburg, Martin :1,739"}]
["Götze, Martin",null,1.333,"TTC_Rotation_Weimar_V1",null,{"$f":"A93&B93&\" :\"&LEFT(C93,10)","v":"Götze, Martin :1,333"}]
["Schulz, Astrid",null,"1,263 (22/23)","TTC_Rotation_Weimar_V1",null,{"$f":"A94&B94&\" :\"&LEFT(C94,10)","v":"Schulz, Astrid :1,263 (22/"}]
["Steinkamp, Bernd",null,0.87,"TTC_Rotation_Weimar_V1",null,"Steinkamp, Bernd :0,87"]
["Trautwein, Sven",null,"0,500 (21/22)","TTC_Rotation_Weimar_V1",null,{"$f":"A96&B96&\" :\"&LEFT(C96,10)","v":"Trautwein, Sven :0,500 (21/"}]
["Ersatz1",null,null,"TTC_Rotation_Weimar_V1",null,"Ersatz1 :"]
["Ersatz2",null,null,"TTC_Rotation_Weimar_V1",null,"Ersatz2 :"]
["Ersatz3",null,null,"TTC_Rotation_Weimar_V1",null,"Ersatz3 :"]
[null,null,null,null,null,"Weimarer_SV_1"]
["Wobser, Jürgen",null,3.556,"Weimarer_SV_1",null,{"$f":"A101&B101&\" :\"&LEFT(C101,10)","v":"Wobser, Jürgen :3,556"}]
["Scholz, Ronny",null,3.3330000000000002,"Weimarer_SV_1",null,"Scholz, Ronny :3,333"]
["Barth, Thomas",null,2.2669999999999999,"Weimarer_SV_1",null,"Barth, Thomas :2,267"]
["Große, Gerhard",null,"2,000 (22/23)","Weimarer_SV_1",null,"Große, Gerhard :2,000 (22/"]
["Berndt, Manfred",null,1.714,"Weimarer_SV_1",null,{"$f":"A105&B105&\" :\"&LEFT(C105,10)","v":"Berndt, Manfred :1,714"}]
["Geburtig, Gerd",null,1.4550000000000001,"Weimarer_SV_1",null,"Geburtig, Gerd :1,455"]
["Mohr, Hubert",null,"0,833 (22/23)","Weimarer_SV_1",null,{"$f":"A107&B107&\" :\"&LEFT(C107,10)","v":"Mohr, Hubert :0,833 (22/"}]
["Hubert, Michael",null,0.8,"Weimarer_SV_1",null,"Hubert, Michael :0,8"]
["Heydrich, Manfred",null,"0,308 (22/23)","Weimarer_SV_1",null,{"$f":"A109&B109&\" :\"&LEFT(C109,10)","v":"Heydrich, Manfred :0,308 (22/"}]
["Liepsch, Klaus",null,"0,167 (22/23)","Weimarer_SV_1",null,{"$f":"A110&B110&\" :\"&LEFT(C110,10)","v":"Liepsch, Klaus :0,167 (22/"}]
["Vollmann, Ulrich",null,"3,200 (4.L, 20/21)","Weimarer_SV_1",null,"Vollmann, Ulrich :3,200 (4.L"]
["Schebitz, Denis",null,0,"Weimarer_SV_1",null,"Schebitz, Denis :0"]
["Nöckel, Andreas",null,0,null,null,{"$f":"A113&B113&\" :\"&LEFT(C113,10)","v":"Nöckel, Andreas :0"}]
["Ersatz1",null,null,null,null,{"$f":"A114&B114&\" :\"&LEFT(C114,10)","v":"Ersatz1 :"}]
["Ersatz2",null,null,null,null,"Ersatz2 :"]
[null,null,null,null,null,"BSV_04_Bad_Berka_F3"]
["Hawlicki, Martin",null,"1,412 (1.L)","BSV_04_Bad_Berka_F3",null,{"$f":"A117&B117&\" :\"&LEFT(C117,10)","v":"Hawlicki, Martin :1,412 (1.L"}]
["Christ, Holger",null,"2,047 (2.L 22/23)","BSV_04_Bad_Berka_F3",null,"Christ, Holger :2,047 (2.L"]
["Brückner, Oliver",null,3.4670000000000001,"BSV_04_Bad_Berka_F3",null,"Brückner, Oliver :3,467"]
["Grau, Mathias",null,3.43,"BSV_04_Bad_Berka_F3",null,"Grau, Mathias :3,43"]
["Marr, Klaus",null,"2,323 (21/22)","BSV_04_Bad_Berka_F3",null,"Marr, Klaus :2,323 (21/"]
["Fischer, Thomas",null,2.3159999999999998,"BSV_04_Bad_Berka_F3",null,"Fischer, Thomas :2,316"]
["Prokopp, Sebastian",null,1.833,"BSV_04_Bad_Berka_F3",null,"Prokopp, Sebastian :1,833"]
["Ungethüm, Philipp",null,1.667,"BSV_04_Bad_Berka_F3",null,"Ungethüm, Philipp :1,667"]
["Niebling, Holger",null,"0,867 (22/23)","BSV_04_Bad_Berka_F3",null,"Niebling, Holger :0,867 (22/"]
["Gelmroth, Tim",null,"0,250 (J)","BSV_04_Bad_Berka_F3",null,"Gelmroth, Tim :0,250 (J)"]
["Niebling, Saskia",null,0,"BSV_04_Bad_Berka_F3",null,"Niebling, Saskia :0"]
["Graf, Siegfried",null,0,"BSV_04_Bad_Berka_F3",null,"Graf, Siegfried :0"]
["Graf, Katrin",null,0,"BSV_04_Bad_Berka_F3",null,"Graf, Katrin :0"]
["Mroz, Massimo",null,"0,000 (J)","BSV_04_Bad_Berka_F3",null,"Mroz, Massimo :0,000 (J)"]
["Sarauer, Johannes",null,"0,000 (J)","BSV_04_Bad_Berka_F3",null,"Sarauer, Johannes :0,000 (J)"]
["Horn, Nils",null,"0,000 (J)","BSV_04_Bad_Berka_F3",null,"Horn, Nils :0,000 (J)"]
["Lempe, Elias",null,"0,000 (J)","BSV_04_Bad_Berka_F3",null,"Lempe, Elias :0,000 (J)"]
["Rark, Andreas",null,0,"BSV_04_Bad_Berka_F3",null,"Rark, Andreas :0"]
["Ersatz1",null,null,null,null,"Ersatz1 :"]
["Ersatz2",null,null,null,null,"Ersatz2 :"]
["Ersatz3",null,null,"BSV_04_Bad_Berka_F3",null,"Ersatz3 :"]
[null,null,null,null,null,"Fort._Großschwabhausen_3"]
["Grau, Diethard",null,"3,710 (22/23)","Fort._Großschwabhausen_3",null,{"$f":"A139&B139&\" :\"&LEFT(C139,10)","v":"Grau, Diethard :3,710 (22/"}]
["Schröder, Berthold",null,3.4780000000000002,"Fort._Großschwabhausen_3",null,"Schröder, Berthold :3,478"]
["Liebig, Ringo",null,3.2,"Fort._Großschwabhausen_3",null,"Liebig, Ringo :3,2"]
["Reule , Andi",null,2.72,"Fort._Großschwabhausen_3",null,"Reule , Andi :2,72"]
["Hänsgen, Marcel",null,"2,632 (22/23)","Fort._Großschwabhausen_3",null,{"$f":"A143&B143&\" :\"&LEFT(C143,10)","v":"Hänsgen, Marcel :2,632 (22/"}]
["Loos, Arne",null,2.5,"Fort._Großschwabhausen_3",null,"Loos, Arne :2,5"]
["Dobschal, Jürgen",null,"1,778 (22/23)","Fort._Großschwabhausen_3",null,{"$f":"A145&B145&\" :\"&LEFT(C145,10)","v":"Dobschal, Jürgen :1,778 (22/"}]
["Albert, Dieter",null,1.5,"Fort._Großschwabhausen_3",null,{"$f":"A146&B146&\" :\"&LEFT(C146,10)","v":"Albert, Dieter :1,5"}]
["Köhler, Lothar",null,"1,313 (22/23)","Fort._Großschwabhausen_3",null,"Köhler, Lothar :1,313 (22/"]
["Niemeyer, Gerd",null,"1,077 (22/23)","Fort._Großschwabhausen_3",null,"Niemeyer, Gerd :1,077 (22/"]
["König, Alexa",null,0.63200000000000001,"Fort._Großschwabhausen_3",null,{"$f":"A149&B149&\" :\"&LEFT(C149,10)","v":"König, Alexa :0,632"}]
["Dietze, Daniel",null,0,"Fort._Großschwabhausen_3",null,{"$f":"A150&B150&\" :\"&LEFT(C150,10)","v":"Dietze, Daniel :0"}]
["Both, Johannes",null,0,"Fort._Großschwabhausen_3",null,"Both, Johannes :0"]
["Ersatz1",null,null,null,null,{"$f":"A152&B152&\" :\"&LEFT(C152,10)","v":"Ersatz1 :"}]
["Ersatz2",null,null,null,null,"Ersatz2 :"]
[null,null,null,null,null,"KSSV_Victoria_Weimar_1"]
["Große, Andreas",null,3.8620000000000001,"KSSV_Victoria_Weimar_1",null,{"$f":"A155&B155&\" :\"&LEFT(C155,10)","v":"Große, Andreas :3,862"}]
["Herold, Michael",null,1.778,"KSSV_Victoria_Weimar_1",null,"Herold, Michael :1,778"]
["Peter, Frank",null,1.143,"KSSV_Victoria_Weimar_1",null,"Peter, Frank :1,143"]
["Pfundheller, Felix",null,0.21099999999999999,"KSSV_Victoria_Weimar_1",null,"Pfundheller, Felix :0,211"]
["Findeis, Robert",null,0,"KSSV_Victoria_Weimar_1",null,{"$f":"A159&B159&\" :\"&LEFT(C159,10)","v":"Findeis, Robert :0"}]
["Ersatz1",null,null,"KSSV_Victoria_Weimar_1",null,"Ersatz1 :"]
["Ersatz2",null,null,"KSSV_Victoria_Weimar_1",null,"Ersatz2 :"]
["Ersatz3",null,null,"KSSV_Victoria_Weimar_1",null,"Ersatz3 :"]
["Ersatz4",null,null,"KSSV_Victoria_Weimar_1",null,"Ersatz4 :"]
[null,null,null,null,null,"TSV_1914_Berlstedt_2"]
["Benkenstein, Andreas",null,2.133,"TSV_1914_Berlstedt_2",null,{"$f":"A165&B165&\" :\"&LEFT(C165,10)","v":"Benkenstein, Andreas :2,133"}]
["Berger, Gerrit",null,1.806,"TSV_1914_Berlstedt_2",null,"Berger, Gerrit :1,806"]
["Horak, Ron",null,1.28,"TSV_1914_Berlstedt_2",null,"Horak, Ron :1,28"]
["Hochstein, Andreas",null,1,"TSV_1914_Berlstedt_2",null,"Hochstein, Andreas :1"]
["Ersatz1",null,null,"TSV_1914_Berlstedt_2",null,"Ersatz1 :"]
["Ersatz2",null,null,"TSV_1914_Berlstedt_2",null,"Ersatz2 :"]
["Ersatz3",null,null,"TSV_1914_Berlstedt_2",null,"Ersatz3 :"]
[null,null,null,null,null,"TTC_Rotation_Weimar_V2"]
["Pospich , Michael",null,"2,345 (1.L 21/22)","TTC_Rotation_Weimar_V2",null,{"$f":"A173&B173&\" :\"&LEFT(C173,10)","v":"Pospich , Michael :2,345 (1.L"}]
["Kiesel, Jakob",null,3.714,"TTC_Rotation_Weimar_V2",null,"Kiesel, Jakob :3,714"]
["Lott, Martin",null,2.8570000000000002,"TTC_Rotation_Weimar_V2",null,"Lott, Martin :2,857"]
["Heinje, Dirk",null,2.72,"TTC_Rotation_Weimar_V2",null,"Heinje, Dirk :2,72"]
["Fink, Sascha",null,2.1669999999999998,"TTC_Rotation_Weimar_V2",null,"Fink, Sascha :2,167"]
["Löffler, Jörg",null,1.75,"TTC_Rotation_Weimar_V2",null,"Löffler, Jörg :1,75"]
["Koloskow, Alexander",null,0,"TTC_Rotation_Weimar_V2",null,{"$f":"A179&B179&\" :\"&LEFT(C179,10)","v":"Koloskow, Alexander :0"}]
["Ersatz1",null,null,"TTC_Rotation_Weimar_V2",null,"Ersatz1 :"]
["Ersatz2",null,null,"TTC_Rotation_Weimar_V2",null,"Ersatz2 :"]
["Ersatz3",null,null,"TTC_Rotation_Weimar_V2",null,"Ersatz3 :"]
[null,null,null,null,null,"Medizin_Blankenhain_2"]
["Kirchhof, Kurt",null,"3,034 (22/23)","Medizin_Blankenhain_2",null,{"$f":"A184&B184&\" :\"&LEFT(C184,10)","v":"Kirchhof, Kurt :3,034 (22/"}]
["Taubert, Anja",null,2.72,"Medizin_Blankenhain_2",null,"Taubert, Anja :2,72"]
["van Elsen, Laurell",null,1.833,"Medizin_Blankenhain_2",null,"van Elsen, Laurell :1,833"]
["Huskobla, Maik",null,1.4,"Medizin_Blankenhain_2",null,"Huskobla, Maik :1,4"]
["Kunze-Mroz, Stephan",null,0.69,"Medizin_Blankenhain_2",null,"Kunze-Mroz, Stephan :0,69"]
["Römer, Mike",null,0,"Medizin_Blankenhain_2",null,"Römer, Mike :0"]
["Jaranowski, Richard",null,0,"Medizin_Blankenhain_2",null,"Jaranowski, Richard :0"]
["Jaranowski, Klaus",null,0,"Medizin_Blankenhain_2",null,"Jaranowski, Klaus :0"]
["Taubert, Marina",null,0,"Medizin_Blankenhain_2",null,{"$f":"A192&B192&\" :\"&LEFT(C192,10)","v":"Taubert, Marina :0"}]
["Sorge, Lucas",null,0,"Medizin_Blankenhain_2",null,{"$f":"A193&B193&\" :\"&LEFT(C193,10)","v":"Sorge, Lucas :0"}]
["Ersatz1",null,null,"Medizin_Blankenhain_2",null,"Ersatz1 :"]
["Ersatz2",null,null,"Medizin_Blankenhain_2",null,"Ersatz2 :"]
["Ersatz3",null,null,"Medizin_Blankenhain_2",null,"Ersatz3 :"]
[null,null,null,null,null,"ZLSG_Wormstedt_1"]
["Kube, Martin",null,3.5790000000000002,"ZLSG_Wormstedt_1",null,{"$f":"A198&B198&\" :\"&LEFT(C198,10)","v":"Kube, Martin :3,579"}]
["Kirchhoff, Michael",null,2.6669999999999998,"ZLSG_Wormstedt_1",null,"Kirchhoff, Michael :2,667"]
["Pietsch, Sebastian",null,2.5259999999999998,"ZLSG_Wormstedt_1",null,"Pietsch, Sebastian :2,526"]
["Kuhn , Andreas",null,2.2559999999999998,"ZLSG_Wormstedt_1",null,"Kuhn , Andreas :2,256"]
["Ersatz1",null,null,"ZLSG_Wormstedt_1",null,"Ersatz1 :"]
["Ersatz2",null,null,"ZLSG_Wormstedt_1",null,"Ersatz2 :"]
["Ersatz3",null,null,"ZLSG_Wormstedt_1",null,"Ersatz3 :"]
["Ersatz4",null,null,"ZLSG_Wormstedt_1",null,"Ersatz4 :"]
[null,null,null,null,null,"ZLSG_Wormstedt_2"]
["Junge, Michael",null,1.714,"ZLSG_Wormstedt_2",null,{"$f":"A207&B207&\" :\"&LEFT(C207,10)","v":"Junge, Michael :1,714"}]
["Hüttner, Christian",null,1.143,"ZLSG_Wormstedt_2",null,"Hüttner, Christian :1,143"]
["Karst, Daniel",null,1.1200000000000001,"ZLSG_Wormstedt_2",null,"Karst, Daniel :1,12"]
["Sachs, Michael",null,0.95199999999999996,"ZLSG_Wormstedt_2",null,"Sachs, Michael :0,952"]
["Ersatz1",null,null,"ZLSG_Wormstedt_2",null,"Ersatz1 :"]
["Ersatz2",null,null,"ZLSG_Wormstedt_2",null,"Ersatz2 :"]
["Ersatz3",null,null,"ZLSG_Wormstedt_2",null,"Ersatz3 :"]
[null,null,null,null,null,"Fort._Großschwabhausen_4"]
[null,null,0,"Fort._Großschwabhausen_4",null,{"$f":"A215&B215&\" :\"&LEFT(C215,10)","v":" :0"}]
[null,null,0,"Fort._Großschwabhausen_4",null," :0"]
[null,null,0,"Fort._Großschwabhausen_4",null," :0"]
[null,null,0,"Fort._Großschwabhausen_4",null," :0"]
[null,null,0,"Fort._Großschwabhausen_4",null," :0"]
[null,null,0,"Fort._Großschwabhausen_4",null," :0"]
[null,null,0,"Fort._Großschwabhausen_4",null," :0"]
[null,null,0,"Fort._Großschwabhausen_4",null," :0"]
[null,null,0,"Fort._Großschwabhausen_4",null,{"$f":"A223&B223&\" :\"&LEFT(C223,10)","v":" :0"}]
[null,null,0,"Fort._Großschwabhausen_4",null," :0"]
[null,null,0,"Fort._Großschwabhausen_4",null," :0"]
[null,null,0,"Fort._Großschwabhausen_4",null,{"$f":"A226&B226&\" :\"&LEFT(C226,10)","v":" :0"}]
[null,null,0,"Fort._Großschwabhausen_4",null,{"$f":"A227&B227&\" :\"&LEFT(C227,10)","v":" :0"}]
[null,null,0,"Fort._Großschwabhausen_4",null,{"$f":"A228&B228&\" :\"&LEFT(C228,10)","v":" :0"}]
["Ersatz1",null,null,"Fort._Großschwabhausen_4",null,"Ersatz1 :"]
["Ersatz2",null,null,"Fort._Großschwabhausen_4",null,"Ersatz2 :"]
["Ersatz3",null,null,"Fort._Großschwabhausen_4",null,"Ersatz3 :"]
[null,null,null,null,null,"BSV_04_Bad_Berka_F4"]
[null,null,null,"BSV_04_Bad_Berka_F4",null," :"]
[null,null,null,"BSV_04_Bad_Berka_F4",null," :"]
[null,null,null,"BSV_04_Bad_Berka_F4",null," :"]
[null,null,null,"BSV_04_Bad_Berka_F4",null," :"]
[null,null,null,"BSV_04_Bad_Berka_F4",null," :"]
[null,null,null,"BSV_04_Bad_Berka_F4",null," :"]
[null,null,null,"BSV_04_Bad_Berka_F4",null," :"]
[null,null,null,"BSV_04_Bad_Berka_F4",null,{"$f":"A240&B240&\" :\"&LEFT(C240,10)","v":" :"}]
[null,null,null,"BSV_04_Bad_Berka_F4",null,{"$f":"A241&B241&\" :\"&LEFT(C241,10)","v":" :"}]
[null,null,null,"BSV_04_Bad_Berka_F4",null,{"$f":"A242&B242&\" :\"&LEFT(C242,10)","v":" :"}]
[null,null,0,"BSV_04_Bad_Berka_F4",null,{"$f":"A243&B243&\" :\"&LEFT(C243,10)","v":" :0"}]
["Ersatz1",null,null,"BSV_04_Bad_Berka_F4",null,"Ersatz1 :"]
[null,null,null,null,null,"TTC_Rotation_Weimar_V4"]
["Riese, Sven",null,3.238,"TTC_Rotation_Weimar_V4",null,"Riese, Sven :3,238"]
["Röske, Michael",null,2.75,"TTC_Rotation_Weimar_V4",null,"Röske, Michael :2,75"]
["Riese, Peter",null,2.444,"TTC_Rotation_Weimar_V4",null,"Riese, Peter :2,444"]
["Berg, Julia",null,1.2,"TTC_Rotation_Weimar_V4",null,"Berg, Julia :1,2"]
["Seel, Richard",null,0.94099999999999995,"TTC_Rotation_Weimar_V4",null,"Seel, Richard :0,941"]
["Mann, Maria",null,0.88900000000000001,"TTC_Rotation_Weimar_V4",null,"Mann, Maria :0,889"]
["Bischof, Knut",null,"0,800 (2.L 22/23)","TTC_Rotation_Weimar_V4",null,{"$f":"A252&B252&\" :\"&LEFT(C252,10)","v":"Bischof, Knut :0,800 (2.L"}]
["Koch, Nils",null,"4,000 (3.L 22/23)","TTC_Rotation_Weimar_V4",null,{"$f":"A253&B253&\" :\"&LEFT(C253,10)","v":"Koch, Nils :4,000 (3.L"}]
["Mann, Johannes",null,"3,345 (3.L 22/23)","TTC_Rotation_Weimar_V4",null,"Mann, Johannes :3,345 (3.L"]
["Weisig, Stefan",null,"2,270 (3.L 22/23)","TTC_Rotation_Weimar_V4",null,{"$f":"A255&B255&\" :\"&LEFT(C255,10)","v":"Weisig, Stefan :2,270 (3.L"}]
["Liebner, Susan",null,"1,176 (3.L 22/23)","TTC_Rotation_Weimar_V4",null,{"$f":"A256&B256&\" :\"&LEFT(C256,10)","v":"Liebner, Susan :1,176 (3.L"}]
["Ludwig, Ralf",null,0,"TTC_Rotation_Weimar_V4",null,{"$f":"A257&B257&\" :\"&LEFT(C257,10)","v":"Ludwig, Ralf :0"}]
["Achermann, Sindy",null,0,"TTC_Rotation_Weimar_V4",null,"Achermann, Sindy :0"]
["Mayer, Till",null,0,"TTC_Rotation_Weimar_V4",null,{"$f":"A259&B259&\" :\"&LEFT(C259,10)","v":"Mayer, Till :0"}]
["Thierfelder, Philipp",null,0,"TTC_Rotation_Weimar_V4",null,{"$f":"A260&B260&\" :\"&LEFT(C260,10)","v":"Thierfelder, Philipp :0"}]
["Ersatz1",null,null,"TTC_Rotation_Weimar_V4",null,"Ersatz1 :"]
["Ersatz2",null,null,"TTC_Rotation_Weimar_V4",null,"Ersatz2 :"]
[null,null,null,null,null,"ZLSG_Wormstedt_3"]
["Krug, Norman",null,2.714,"ZLSG_Wormstedt_3",null,"Krug, Norman :2,714"]
["Fehre, Jürgen",null,2.6059999999999999,"ZLSG_Wormstedt_3",null,"Fehre, Jürgen :2,606"]
["von der Gönna, Gordon",null,2.1429999999999998,"ZLSG_Wormstedt_3",null,"von der Gönna, Gordon :2,143"]
["Richter, Andreas",null,2,"ZLSG_Wormstedt_3",null,"Richter, Andreas :2"]
["Haase , Pascal",null,1.091,"ZLSG_Wormstedt_3",null,{"$f":"A268&B268&\" :\"&LEFT(C268,10)","v":"Haase , Pascal :1,091"}]
["Ersatz1",null,null,"ZLSG_Wormstedt_3",null,"Ersatz1 :"]
["Ersatz2",null,null,"ZLSG_Wormstedt_3",null,"Ersatz2 :"]
["Ersatz3",null,null,"ZLSG_Wormstedt_3",null,"Ersatz3 :"]
[null,null,null,null,null,"KSSV_Victoria_Weimar_2"]
["Sitz, Susanne",null,"1,756 (2.L 22/23)","KSSV_Victoria_Weimar_2",null,"Sitz, Susanne :1,756 (2.L"]
["Vogler, Ralph",null,"1,158 (2.L 22/23)","KSSV_Victoria_Weimar_2",null,"Vogler, Ralph :1,158 (2.L"]
["Mager, Sascha",null,3.294,"KSSV_Victoria_Weimar_2",null,"Mager, Sascha :3,294"]
["Sauer, Silvia",null,"3,000 (22/23)","KSSV_Victoria_Weimar_2",null,{"$f":"A276&B276&\" :\"&LEFT(C276,10)","v":"Sauer, Silvia :3,000 (22/"}]
["Putz, Andreas",null,2.9089999999999998,"KSSV_Victoria_Weimar_2",null,"Putz, Andreas :2,909"]
["Schnabl, Maurice",null,2.9089999999999998,"KSSV_Victoria_Weimar_2",null,"Schnabl, Maurice :2,909"]
["Gerhardt, Uwe",null,2.72,"KSSV_Victoria_Weimar_2",null,"Gerhardt, Uwe :2,72"]
["Weber, Bernhard",null,2.3079999999999998,"KSSV_Victoria_Weimar_2",null,"Weber, Bernhard :2,308"]
["Yalin, Murat",null,"0,522 (22/23)","KSSV_Victoria_Weimar_2",null,{"$f":"A281&B281&\" :\"&LEFT(C281,10)","v":"Yalin, Murat :0,522 (22/"}]
["Worms, Jürgen",null,0,"KSSV_Victoria_Weimar_2",null,"Worms, Jürgen :0"]
["Täger, Steffen",null,0,"KSSV_Victoria_Weimar_2",null,"Täger, Steffen :0"]
["Bachmann, Veit",null,0,"KSSV_Victoria_Weimar_2",null,"Bachmann, Veit :0"]
["Seifert, Frank",null,0,"KSSV_Victoria_Weimar_2",null,{"$f":"A285&B285&\" :\"&LEFT(C285,10)","v":"Seifert, Frank :0"}]
["Heerdegen, Pascal",null,0,"KSSV_Victoria_Weimar_2",null,"Heerdegen, Pascal :0"]
["Kornacher, Henry",null,0,"KSSV_Victoria_Weimar_2",null,{"$f":"A287&B287&\" :\"&LEFT(C287,10)","v":"Kornacher, Henry :0"}]
["Fischer, Silke",null,0,"KSSV_Victoria_Weimar_2",null,{"$f":"A288&B288&\" :\"&LEFT(C288,10)","v":"Fischer, Silke :0"}]
["Rödel, Claudia",null,0,"KSSV_Victoria_Weimar_2",null,"Rödel, Claudia :0"]
["Skerek, Karam",null,0,"KSSV_Victoria_Weimar_2",null,{"$f":"A290&B290&\" :\"&LEFT(C290,10)","v":"Skerek, Karam :0"}]
["Ersatz1",null,null,"KSSV_Victoria_Weimar_2",null,"Ersatz1 :"]
["Ersatz2",null,null,"KSSV_Victoria_Weimar_2",null,"Ersatz2 :"]
["Ersatz3",null,null,"KSSV_Victoria_Weimar_2",null,"Ersatz3 :"]
[" ",null,null,null,null,"TSV_1914_Berlstedt_4"]
[null,null,null,"TSV_1914_Berlstedt_4",null," :"]
[null,null,null,"TSV_1914_Berlstedt_4",null," :"]
[null,null,null,"TSV_1914_Berlstedt_4",null," :"]
[null,null,null,"TSV_1914_Berlstedt_4",null," :"]
[null,null,null,"TSV_1914_Berlstedt_4",null," :"]
[null,null,null,"TSV_1914_Berlstedt_4",null," :"]
[null,null,null,"TSV_1914_Berlstedt_4",null," :"]
[null,null,null,"TSV_1914_Berlstedt_4",null," :"]
[null,null,null,"TSV_1914_Berlstedt_4",null,{"$f":"A303&B303&\" :\"&LEFT(C303,10)","v":" :"}]
[null,null,null,"TSV_1914_Berlstedt_4",null,{"$f":"A304&B304&\" :\"&LEFT(C304,10)","v":" :"}]
[null,null,null,"TSV_1914_Berlstedt_4",null,{"$f":"A305&B305&\" :\"&LEFT(C305,10)","v":" :"}]
[null,null,null,"TSV_1914_Berlstedt_4",null,{"$f":"A306&B306&\" :\"&LEFT(C306,10)","v":" :"}]
[null,null,null,"TSV_1914_Berlstedt_4",null,{"$f":"A307&B307&\" :\"&LEFT(C307,10)","v":" :"}]
[null,null,0,"TSV_1914_Berlstedt_4",null," :0"]
[null,null,0,"TSV_1914_Berlstedt_4",null,{"$f":"A309&B309&\" :\"&LEFT(C309,10)","v":" :0"}]
["Ersatz 1",null,null,"TSV_1914_Berlstedt_4",null,"Ersatz 1 :"]
[]
[null,null,null,null,null,"SG_Rot._Tannroda_3"]
["Wedekind, Jens",null,2.2610000000000001,"SG_Rot._Tannroda_3",null,{"$f":"A313&B313&\" :\"&LEFT(C313,10)","v":"Wedekind, Jens :2,261"}]
["Scharf, Helmut",null,2,"SG_Rot._Tannroda_3",null,"Scharf, Helmut :2"]
["Singer, Franziska",null,"1,867 (22/23)","SG_Rot._Tannroda_3",null,"Singer, Franziska :1,867 (22/"]
["Großkunze, Kai",null,1.333,"SG_Rot._Tannroda_3",null,{"$f":"A316&B316&\" :\"&LEFT(C316,10)","v":"Großkunze, Kai :1,333"}]
["Ersatz1",null,null,"SG_Rot._Tannroda_3",null,{"$f":"A317&B317&\" :\"&LEFT(C317,10)","v":"Ersatz1 :"}]
["Ersatz2",null,null,"SG_Rot._Tannroda_3",null,{"$f":"A318&B318&\" :\"&LEFT(C318,10)","v":"Ersatz2 :"}]
["Ersatz3",null,null,"SG_Rot._Tannroda_3",null,{"$f":"A319&B319&\" :\"&LEFT(C319,10)","v":"Ersatz3 :"}]
[null,null,null,null,null,"TSV_1914_Berlstedt_3"]
["Seidemann, Heiko",null,3.286,"TSV_1914_Berlstedt_3",null,{"$f":"A321&B321&\" :\"&LEFT(C321,10)","v":"Seidemann, Heiko :3,286"}]
["Strobach, Gina",null,3.1110000000000002,"TSV_1914_Berlstedt_3",null,"Strobach, Gina :3,111"]
["Mendel, Jürgen",null,2.6669999999999998,"TSV_1914_Berlstedt_3",null,{"$f":"A323&B323&\" :\"&LEFT(C323,10)","v":"Mendel, Jürgen :2,667"}]
["Oswald, Jens-Uwe",null,2.4350000000000001,"TSV_1914_Berlstedt_3",null,"Oswald, Jens-Uwe :2,435"]
["Marth, Uwe",null,1.4550000000000001,"TSV_1914_Berlstedt_3",null,{"$f":"A325&B325&\" :\"&LEFT(C325,10)","v":"Marth, Uwe :1,455"}]
["Rang, Uwe",null,1,"TSV_1914_Berlstedt_3",null,{"$f":"A326&B326&\" :\"&LEFT(C326,10)","v":"Rang, Uwe :1"}]
["Haupt, Simon",null,0,"TSV_1914_Berlstedt_3",null,{"$f":"A327&B327&\" :\"&LEFT(C327,10)","v":"Haupt, Simon :0"}]
["Ersatz1",null," ","TSV_1914_Berlstedt_3",null,"Ersatz1 : "]
["Ersatz2",null," ","TSV_1914_Berlstedt_3",null,"Ersatz2 : "]
["Ersatz3",null," ","TSV_1914_Berlstedt_3",null,"Ersatz3 : "]
[null,null,null,null,null,"TTC_Rotation_Weimar_V3"]
["Dutschke, Manuel",null,2.7370000000000001,"TTC_Rotation_Weimar_V3",null,{"$f":"A332&B332&\" :\"&LEFT(C332,10)","v":"Dutschke, Manuel :2,737"}]
["Ajaini, Ahmad",null,2.56,"TTC_Rotation_Weimar_V3",null,"Ajaini, Ahmad :2,56"]
["Zsoldos, Attila",null,0.90900000000000003,"TTC_Rotation_Weimar_V3",null,"Zsoldos, Attila :0,909"]
["Schachert, Hans Werner",null,0.76200000000000001,"TTC_Rotation_Weimar_V3",null,"Schachert, Hans Werner :0,762"]
["Rhiel , Martin",null,"1,385 (3.L)","TTC_Rotation_Weimar_V3",null,"Rhiel , Martin :1,385 (3.L"]
["Johnson, Trevor",null,0,"TTC_Rotation_Weimar_V3",null,"Johnson, Trevor :0"]
["Ersatz1",null,null,"TTC_Rotation_Weimar_V3",null,{"$f":"A338&B338&\" :\"&LEFT(C338,10)","v":"Ersatz1 :"}]
["Ersatz2",null,null,"TTC_Rotation_Weimar_V3",null,{"$f":"A339&B339&\" :\"&LEFT(C339,10)","v":"Ersatz2 :"}]
["Ersatz3",null,null,"TTC_Rotation_Weimar_V3",null,"Ersatz3 :"]
[null,null,null,null,null,"Medizin_Blankenhain_3"]
[null,null,null,"KSSV_Victoria_Weimar_3",null,{"$f":"A342&B342&\" :\"&LEFT(C342,10)","v":" :"}]
[null,null,null,"KSSV_Victoria_Weimar_3",null," :"]
[null,null,null,"KSSV_Victoria_Weimar_3",null," :"]
[null,null,null,"KSSV_Victoria_Weimar_3",null," :"]
[null,null,null,"KSSV_Victoria_Weimar_3",null," :"]
[null,null,null,"KSSV_Victoria_Weimar_3",null," :"]
[null,null,null,"KSSV_Victoria_Weimar_3",null," :"]
[null,null,null,"KSSV_Victoria_Weimar_3",null," :"]
[null,null,null,"KSSV_Victoria_Weimar_3",null," :"]
[null,null,null,"KSSV_Victoria_Weimar_3",null," :"]
["Ersatz1",null,0,"KSSV_Victoria_Weimar_3",null,"Ersatz1 :0"]
["Ersatz2",null,null,"KSSV_Victoria_Weimar_3",null,{"$f":"A353&B353&\" :\"&LEFT(C353,10)","v":"Ersatz2 :"}]
["Ersatz3",null,null,"KSSV_Victoria_Weimar_3",null,"Ersatz3 :"]
[null,null,null,null,null,"TTC_Rotation_Weimar_V5"]
[null,null,null,"TTC Rotation Weimar V5",null,{"$f":"A356&B356&\" :\"&LEFT(C356,10)","v":" :"}]
[null,null,null,"TTC Rotation Weimar V5",null," :"]
[null,null,null,"TTC Rotation Weimar V5",null," :"]
[null,null,null,"TTC Rotation Weimar V5",null," :"]
[null,null,null,"TTC Rotation Weimar V5",null," :"]
[null,null,null,"TTC Rotation Weimar V5",null,{"$f":"A361&B361&\" :\"&LEFT(C361,10)","v":" :"}]
[null,null,null,"TTC Rotation Weimar V5",null," :"]
[null,null,null,"TTC Rotation Weimar V5",null,{"$f":"A363&B363&\" :\"&LEFT(C363,10)","v":" :"}]
[null,null,null,"TTC Rotation Weimar V5",null,{"$f":"A364&B364&\" :\"&LEFT(C364,10)","v":" :"}]
[null,null,null,"TTC Rotation Weimar V5",null,{"$f":"A365&B365&\" :\"&LEFT(C365,10)","v":" :"}]
[null,null,null,"TTC Rotation Weimar V5",null,{"$f":"A366&B366&\" :\"&LEFT(C366,10)","v":" :"}]
["Ersatz1",null,null,"TTC Rotation Weimar V5",null,"Ersatz1 :"]
["Ersatz2",null,null,"TTC Rotation Weimar V5",null,"Ersatz2 :"]
["Ersatz3",null,null,"TTC Rotation Weimar V5",null,"Ersatz3 :"]
["Ersatz4",null,null,"TTC Rotation Weimar V5",null,{"$f":"A370&B370&\" :\"&LEFT(C370,10)","v":"Ersatz4 :"}]
["Ersatz5",null,null,"TTC Rotation Weimar V5",null,{"$f":"A371&B371&\" :\"&LEFT(C371,10)","v":"Ersatz5 :"}]
[null,null,null,null,null,"Weimarer_SV_2"]
[null,null,null,"Weimarer SV 2",null,{"$f":"A373&B373&\" :\"&LEFT(C373,10)","v":" :"}]
[null,null,null,"Weimarer SV 2",null,{"$f":"A374&B374&\" :\"&LEFT(C374,10)","v":" :"}]
[null,null,null,"Weimarer SV 2",null," :"]
[null,null,null,"Weimarer SV 2",null," :"]
[null,null,null,"Weimarer SV 2",null," :"]
[null,null,null,"Weimarer SV 2",null," :"]
[null,null,null,"Weimarer SV 2",null," :"]
[null,null,null,"Weimarer SV 2",null," :"]
[null,null,null,"Weimarer SV 2",null," :"]
[null,null,null,"Weimarer SV 2",null," :"]
["Ersatz1",null,null,"Weimarer SV 2",null,"Ersatz1 :"]
[]
[]
[null,null,null,null,null,"ZLSG_Wormstedt_5"]
[null,null,null,"ZLSG_Wormstedt_5",null,{"$f":"A387&B387&\" :\"&LEFT(C387,10)","v":" :"}]
[null,null,null,"ZLSG_Wormstedt_5",null," :"]
[null,null,null,"ZLSG_Wormstedt_5",null," :"]
[null,null,null,"ZLSG_Wormstedt_5",null," :"]
[null,null,null,"ZLSG_Wormstedt_5",null," :"]
[null,null,null,"ZLSG_Wormstedt_5",null," :"]
[null,null,null,"ZLSG_Wormstedt_5",null," :"]
[null,null,null,"ZLSG_Wormstedt_5",null," :"]
[null,null,null,"ZLSG_Wormstedt_5",null," :"]
[null,null,null,"ZLSG_Wormstedt_5",null,{"$f":"A396&B396&\" :\"&LEFT(C396,10)","v":" :"}]
["Ersatz1",null,null,"ZLSG_Wormstedt_5",null,"Ersatz1 :"]
["Ersatz2",null,null,"ZLSG_Wormstedt_5",null,"Ersatz2 :"]
[null,null,null,null,null,"SG_Rot._Tannroda_4"]
["Hildesheim, Tim",null,2.4620000000000002,"SG_Rot._Tannroda_4",null,{"$f":"A400&B400&\" :\"&LEFT(C400,10)","v":"Hildesheim, Tim :2,462"}]
["Hunter , Frank",null,2.0739999999999998,"SG_Rot._Tannroda_4",null,"Hunter , Frank :2,074"]
["Heckenbarth, Moritz",null,1.8180000000000001,"SG_Rot._Tannroda_4",null,"Heckenbarth, Moritz :1,818"]
["Backhaus, Thomas",null,1,"SG_Rot._Tannroda_4",null,"Backhaus, Thomas :1"]
["Nauber, Nils",null,0.69599999999999995,"SG_Rot._Tannroda_4",null,"Nauber, Nils :0,696"]
["Schenk, Philip",null,0,"SG_Rot._Tannroda_4",null,"Schenk, Philip :0"]
["Lemke, Tobias",null,0,"SG_Rot._Tannroda_4",null,"Lemke, Tobias :0"]
["Großkunze, Tim",null,0,"SG_Rot._Tannroda_4",null,{"$f":"A407&B407&\" :\"&LEFT(C407,10)","v":"Großkunze, Tim :0"}]
["Backhaus, Conrad",null,0,"SG_Rot._Tannroda_4",null,"Backhaus, Conrad :0"]
["von der Weiden, Nikolas",null,0,"SG_Rot._Tannroda_4",null,{"$f":"A409&B409&\" :\"&LEFT(C409,10)","v":"von der Weiden, Nikolas :0"}]
["Ritter, Tom",null,0,"SG_Rot._Tannroda_4",null,"Ritter, Tom :0"]
["Ersatz1",null,null,null,null,{"$f":"A411&B411&\" :\"&LEFT(C411,10)","v":"Ersatz1 :"}]
["Ersatz2",null,null,null,null,{"$f":"A412&B412&\" :\"&LEFT(C412,10)","v":"Ersatz2 :"}]
["Ersatz3",null,null,"SG_Rot._Tannroda_4",null,"Ersatz3 :"]
[null,null,null,null,null,"ZLSG_Wormstedt_4"]
["Dr. Wolter, Wolfgang",null,"1,128 (1.L 22/23)","ZLSG_Wormstedt_4",null,{"$f":"A415&B415&\" :\"&LEFT(C415,10)","v":"Dr. Wolter, Wolfgang :1,128 (1.L"}]
["Dill, Olaf",null,4,"ZLSG_Wormstedt_4",null,{"$f":"A416&B416&\" :\"&LEFT(C416,10)","v":"Dill, Olaf :4"}]
["Lapp, Jens",null,3.714,"ZLSG_Wormstedt_4",null,"Lapp, Jens :3,714"]
["Müller, Anja",null,2.7269999999999999,"ZLSG_Wormstedt_4",null,"Müller, Anja :2,727"]
["Veit , Silvio",null,2.1429999999999998,"ZLSG_Wormstedt_4",null,"Veit , Silvio :2,143"]
["Oertel, Lutz",null,"1,692 (22/23)","ZLSG_Wormstedt_4",null,"Oertel, Lutz :1,692 (22/"]
["Feid, Klaus-Dieter",null,"1,538 (22/23)","ZLSG_Wormstedt_4",null,"Feid, Klaus-Dieter :1,538 (22/"]
["Hartman, Marcel ",null,"1,304 (22/23)","ZLSG_Wormstedt_4",null,{"$f":"A422&B422&\" :\"&LEFT(C422,10)","v":"Hartman, Marcel  :1,304 (22/"}]
["Kula, Stephanie",null,1,"ZLSG_Wormstedt_4",null,"Kula, Stephanie :1"]
["Westermann, Dima",null,0,"ZLSG_Wormstedt_4",null,"Westermann, Dima :0"]
["Ilmer, Steve",null,0,"ZLSG_Wormstedt_4",null,"Ilmer, Steve :0"]
["Ersatz1",null,null,"ZLSG_Wormstedt_4",null,{"$f":"A426&B426&\" :\"&LEFT(C426,10)","v":"Ersatz1 :"}]
["Ersatz2",null,null,"ZLSG_Wormstedt_4",null,"Ersatz2 :"]
["Ersatz3",null,null,"ZLSG_Wormstedt_4",null,"Ersatz3 :"]
[]
[null,null,null,null,null,"SG_Mellingen_Taubach"]
[null,null,null,"BSV_04_Bad_Berka_F5",null,{"$f":"A431&B431&\" :\"&LEFT(C431,10)","v":" :"}]
[null,null,null,"BSV_04_Bad_Berka_F5",null," :"]
[null,null,null,"BSV_04_Bad_Berka_F5",null," :"]
[null,null,null,"BSV_04_Bad_Berka_F5",null," :"]
[null,null,null,"BSV_04_Bad_Berka_F5",null," :"]
[null,null,null,"BSV_04_Bad_Berka_F5",null," :"]
[null,null,null,"BSV_04_Bad_Berka_F5",null," :"]
[null,null,null,"BSV_04_Bad_Berka_F5",null," :"]
[null,null,null,"BSV_04_Bad_Berka_F5",null," :"]
[null,null,null,"BSV_04_Bad_Berka_F5",null," :"]
[null,null,null,"BSV_04_Bad_Berka_F5",null," :"]
["Ersatz1",null,null,"BSV_04_Bad_Berka_F5",null,"Ersatz1 :"]
["Ersatz2",null,null,"BSV_04_Bad_Berka_F5",null,"Ersatz2 :"]
[null,null,null,null,null," :"]
[null,null,null,null,null,"TSG_Apolda_2"]
["Vollmar, Daniel",null,"3,400 (22/23)","TSG_Apolda_2",null,{"$f":"A446&\",\"&B446&\" :\"&LEFT(C446,5)","v":"Vollmar, Daniel, :3,400"}]
["Herrmann, Volker",null,2.4,"TSG_Apolda_2",null,"Herrmann, Volker, :2,4"]
["Beeg, Bettina",null,1.8180000000000001,"TSG_Apolda_2",null,"Beeg, Bettina, :1,818"]
["Minner, Jan",null,1.647,"TSG_Apolda_2",null,"Minner, Jan, :1,647"]
["Trepanowski, Mario",null,0.88900000000000001,"TSG_Apolda_2",null,"Trepanowski, Mario, :0,889"]
["Laar, Johannes",null,0.85699999999999998,"TSG_Apolda_2",null,"Laar, Johannes, :0,857"]
["Bohner, Stephan",null,0.54500000000000004,"TSG_Apolda_2",null,"Bohner, Stephan, :0,545"]
["Frömmchen, Andreas",null,"2,400 (3.L)","TSG_Apolda_2",null,"Frömmchen, Andreas, :2,400"]
["Baum, Nicol",null,0,"TSG_Apolda_2",null,{"$f":"A454&\",\"&B454&\" :\"&LEFT(C454,5)","v":"Baum, Nicol, :0"}]
["Engelbrecht, Holger",null,0,"TSG_Apolda_2",null,{"$f":"A455&\",\"&B455&\" :\"&LEFT(C455,5)","v":"Engelbrecht, Holger, :0"}]
["Müller, Tommy",null,0,"TSG_Apolda_2",null,{"$f":"A456&\",\"&B456&\" :\"&LEFT(C456,5)","v":"Müller, Tommy, :0"}]
["Ersatz1",null,null,"TSG_Apolda_2",null,"Ersatz1, :"]
[]
[null,null,null,null,null,"Musashi_Weimar"]
["Dahm, Dirk-Uwe",null,2.4620000000000002,"Musashi_Weimar",null,{"$f":"A460&\",\"&B460&\" :\"&LEFT(C460,5)","v":"Dahm, Dirk-Uwe, :2,462"}]
["Dahm, William Myamoto",null,2,"Musashi_Weimar",null,"Dahm, William Myamoto, :2"]
["Tschernatsch, Uwe",null,1.571,"Musashi_Weimar",null,"Tschernatsch, Uwe, :1,571"]
["Gräning, Peter",null,0.74099999999999999,"Musashi_Weimar",null,"Gräning, Peter, :0,741"]
["Schmidt, Frank",null,0,"Musashi_Weimar",null,"Schmidt, Frank, :0"]
["Dahm, Aurelius Morihei",null,0,"Musashi_Weimar",null,"Dahm, Aurelius Morihei, :0"]
["Ersatz1",null,null,"Musashi_Weimar",null,{"$f":"A466&\",\"&B466&\" :\"&LEFT(C466,5)","v":"Ersatz1, :"}]
["Ersatz2",null,null,"Musashi_Weimar",null,"Ersatz2, :"]
["Ersatz3",null,null,"Musashi_Weimar",null,"Ersatz3, :"]
[null,null,null,null,null,", :"]

{"sheet":"Alle Spieler","index":6,"n_rows":222,"n_cols":1,"rows_kept":222,"cut":false,"hidden":true,"merged":[]}
["Achermann, Sindy :0"]
["Ajaini, Ahmad :2,56"]
["Albert, Dieter :1,5"]
["Arenswald, Ralf :1,455"]
["Bachmann, Veit :0"]
["Backhaus, Conrad :0"]
["Backhaus, Thomas :1"]
["Barth, Thomas :2,267"]
["Baum, Nicol, :0"]
["Beeg, Bettina, :1,818"]
["Benkenstein, Andreas :2,133"]
["Berg, Julia :1,2"]
["Berger, Gerrit :1,806"]
["Berndt, Manfred :1,714"]
["Bischof, Knut :0,800 (2.L"]
["Blume, Thomas :1,091"]
["Bohner, Stephan, :0,545"]
["Both, Johannes :0"]
["Brückner, Jürgen :3,556"]
["Brückner, Oliver :3,467"]
["Brückner, Steffen :1,231"]
["Burschberg, Swen :2,061 (22/"]
["Christ, Holger :2,047 (2.L"]
["Dabelsteen, Frank :3,304"]
["Dahm, Aurelius Morihei, :0"]
["Dahm, Dirk-Uwe, :2,462"]
["Dahm, William Myamoto, :2"]
["Danzer, Stefan :2,909"]
["Dietze, Daniel :0"]
["Dill, Olaf :4"]
["Dobschal, Jürgen :1,778 (22/"]
["Dr. Wolter, Wolfgang :1,128 (1.L"]
["Dutschke, Manuel :2,737"]
["Eckardt, Hans-Peter :0,824 (21/"]
["Engelbrecht, Holger, :0"]
["Fehre, Jürgen :2,606"]
["Feid, Klaus-Dieter :1,538 (22/"]
["Findeis, Robert :0"]
["Fink, Sascha :2,167"]
["Fischer, Silke :0"]
["Fischer, Thomas :2,316"]
["Frömmchen, Andreas, :2,400"]
["Gast, Friedhelm :1,857"]
["Geburtig, Gerd :1,455"]
["Gehrhardt, Christoph :2,588"]
["Geißler, Robert :3,083 (22/"]
["Gelmroth, Tim :0,250 (J)"]
["Gerhardt, Uwe :2,72"]
["Götze, Martin :1,333"]
["Graf, Katrin :0"]
["Graf, Siegfried :0"]
["Gräning, Peter, :0,741"]
["Grau, Detlef :1,385 (22/"]
["Grau, Diethard :3,710 (22/"]
["Grau, Kevin :3,4"]
["Grau, Mathias :3,43"]
["Große, Andreas :3,862"]
["Große, Gerhard :2,000 (22/"]
["Großkunze, Kai :1,333"]
["Großkunze, Tim :0"]
["Haase , Pascal :1,091"]
["Hänsgen, Marcel :2,632 (22/"]
["Hartman, Marcel  :1,304 (22/"]
["Hasenauer, Christof :3,660 (21/"]
["Haupt, Simon :0"]
["Hawlicki, Martin :1,412 (1.L"]
["Heckenbarth, Moritz :1,818"]
["Heerdegen, Pascal :0"]
["Heinje, Dirk :2,72"]
["Herold, Michael :1,778"]
["Herrmann, Volker, :2,4"]
["Heydrich, Manfred :0,308 (22/"]
["Hildesheim, Tim :2,462"]
["Hochstein, Andreas :1"]
["Horak, Ron :1,28"]
["Horn, Nils :0,000 (J)"]
["Hubert, Michael :0,8"]
["Hunter , Frank :2,074"]
["Huskobla, Maik :1,4"]
["Hüttner, Christian :1,143"]
["Ilmer, Steve :0"]
["Jaranowski, Klaus :0"]
["Jaranowski, Richard :0"]
["Johnson, Trevor :0"]
["Junge, Michael :1,714"]
["Kallenbach, Rainer :3"]
["Karst, Daniel :1,12"]
["Kiesel, Jakob :3,714"]
["Kirchhof, Kurt :3,034 (22/"]
["Kirchhoff, Michael :2,667"]
["Klenner, Thomas :2,759 (22/"]
["Klos, Heiko  :2,909"]
["Knobloch, Dirk :2"]
["Knobloch, Michael :2,8"]
["Koch, Nils :4,000 (3.L"]
["Köhler, Lothar :1,313 (22/"]
["Koloskow, Alexander :0"]
["König, Alexa :0,632"]
["König, Thomas :2,476"]
["Kornacher, Henry :0"]
["Krug, Norman :2,714"]
["Kube, Martin :3,579"]
["Kuhn , Andreas :2,256"]
["Kula, Stephanie :1"]
["Kunze-Mroz, Stephan :0,69"]
["Laar, Johannes, :0,857"]
["Lapp, Jens :3,714"]
["Lemke, Tobias :0"]
["Lempe, Elias :0,000 (J)"]
["Liebig, Ringo :3,2"]
["Liebner, Susan :1,176 (3.L"]
["Liepsch, Klaus :0,167 (22/"]
["Löffler, Jörg :1,75"]
["Loos, Arne :2,5"]
["Lott, Martin :2,857"]
["Ludwig, Ralf :0"]
["Luu, Dung :2,609"]
["Mager, Sascha :3,294"]
["Mann, Johannes :3,345 (3.L"]
["Mann, Maria :0,889"]
["Marr, Klaus :2,323 (21/"]
["Marth, Uwe :1,455"]
["Mayer, Till :0"]
["Mendel, Jürgen :2,667"]
["Mendler, Uwe :2,167"]
["Michaelis, Jörg :1,2"]
["Michel, Horst :2,737"]
["Minner, Jan, :1,647"]
["Mohr, Hubert :0,833 (22/"]
["Mroz, Massimo :0,000 (J)"]
["Müller, Anja :2,727"]
["Müller, Tommy, :0"]
["Musashi_Weimar"]
["Nauber, Nils :0,696"]
["Niebling, Holger :0,867 (22/"]
["Niebling, Saskia :0"]
["Niemeyer, Gerd :1,077 (22/"]
["Nitsche, Frederik :3,429"]
["Nöckel, Andreas :0"]
["Oertel, Lutz :1,692 (22/"]
["Oswald, Jens-Uwe :2,435"]
["Pappenberg, Jan :2,667"]
["Peter, Frank :1,143"]
["Pfaffe,  Wolfgang :1,263"]
["Pfundheller, Felix :0,211"]
["Pietsch, Sebastian :2,526"]
["Plomitzer, Thomas :Q 1525"]
["Pospich , Michael :2,345 (1.L"]
["Prokopp, Sebastian :1,833"]
["Putz, Andreas :2,909"]
["Quett, Noah :2"]
["Rang, Uwe :1"]
["Rark, Andreas :0"]
["Reule , Andi :2,72"]
["Rhiel , Martin :1,385 (3.L"]
["Richter, Andreas :2"]
["Riese, Peter :2,444"]
["Riese, Sven :3,238"]
["Ritter, Tom :0"]
["Rödel, Claudia :0"]
["Römer, Mike :0"]
["Röse, Peter :4,0 (QTTR "]
["Röske, Michael :2,75"]
["Sachs, Michael :0,952"]
["Sarauer, Johannes :0,000 (J)"]
["Sauer, Silvia :3,000 (22/"]
["Schachert, Hans Werner :0,762"]
["Scharf, Helmut :2"]
["Schebitz, Denis :0"]
["Schenk, Philip :0"]
["Schmidt, Frank, :0"]
["Schnabl, Maurice :2,909"]
["Scholz, Ronny :3,333"]
["Schramke, Michael :0,889"]
["Schröder, Berthold :3,478"]
["Schröter, Jörg :3,294"]
["Schulz, Astrid :1,263 (22/"]
["Schwager, Matthias :1,571"]
["Seel, Richard :0,941"]
["Seidemann, Heiko :3,286"]
["Seifarth Siegfried :3,586"]
["Seifert, Frank :0"]
["Simon, Lennard :3,158 (22/"]
["Singer, Franziska :1,867 (22/"]
["Singer, Nicklas :2,333 (22/"]
["Sitz, Susanne :1,756 (2.L"]
["Skerek, Karam :0"]
["Sorge, Lucas :0"]
["Steinkamp, Bernd :0,87"]
["Strobach, Gina :3,111"]
["Süß, Ronald :3,412"]
["Täger, Steffen :0"]
["Taubert, Anja :2,72"]
["Taubert, Marina :0"]
["Thierfelder, Philipp :0"]
["Trautwein, Sven :0,500 (21/"]
["Trepanowski, Jürgen :1,467"]
["Trepanowski, Mario, :0,889"]
["Tschernatsch, Uwe, :1,571"]
["Ungethüm, Philipp :1,667"]
["van Elsen, Laurell :1,833"]
["Veit , Silvio :2,143"]
["Vinz, Thomas :2,222"]
["Vogler, Ralph :1,158 (2.L"]
["Vollmann, Ulrich :3,200 (4.L"]
["Vollmar, Daniel, :3,400"]
["von der Gönna, Gordon :2,143"]
["von der Weiden, Nikolas :0"]
["Wattenbach, Klaus :1,429"]
["Weber, Bernhard :2,308"]
["Wedekind, Frederick :3,478"]
["Wedekind, Jens :2,261"]
["Weisig, Stefan :2,270 (3.L"]
["Wenke, Wolfram :1,848"]
["Westermann, Dima :0"]
["Wiede, Luise :0"]
["Wobser, Jürgen :3,556"]
["Wollmann, Dirk :1,895"]
["Worms, Jürgen :0"]
["Würzburg, Martin :1,739"]
["Yalin, Murat :0,522 (22/"]
["Zsoldos, Attila :0,909"]

{"sheet":"START","index":7,"n_rows":35,"n_cols":52,"rows_kept":35,"cut":false,"hidden":true,"merged":[[0,0,1,24],[2,1,2,5],[2,8,2,15],[2,20,2,24],[7,1,7,4],[7,8,7,13],[7,18,7,24],[3,1,3,5],[3,8,3,15],[3,16,3,24],[4,1,4,5],[4,16,4,17],[4,18,4,24],[5,1,5,4],[5,8,5,13],[5,16,5,17],[5,18,5,24],[6,1,6,4],[6,8,6,13],[6,18,6,24],[8,1,8,4],[8,8,8,13],[8,16,8,17],[8,18,8,24],[9,1,9,4],[9,8,9,13],[9,16,9,17],[9,18,9,24],[10,1,10,2],[10,3,10,4],[10,9,10,13],[10,18,10,24],[11,1,11,2],[11,3,11,4],[11,9,11,13],[11,18,11,24],[12,1,12,4],[12,8,12,13],[12,18,12,24],[12,16,12,17],[14,3,14,5],[14,7,14,8],[13,3,13,5],[13,7,13,8],[13,9,13,10],[13,17,13,18],[13,19,13,20],[13,21,13,22],[13,23,13,24],[13,11,13,12],[13,13,13,14],[13,15,13,16],[15,3,15,5],[15,7,15,8],[16,3,16,5],[16,7,16,8],[17,3,17,5],[17,7,17,8],[18,3,18,5],[18,7,18,8],[19,3,19,5],[19,7,19,8],[20,3,20,5],[20,7,20,8],[21,3,21,5],[21,7,21,8],[22,3,22,5],[22,7,22,8],[23,3,23,5],[23,7,23,8],[24,3,24,5],[24,7,24,8],[25,3,25,5],[25,7,25,8],[26,3,26,5],[26,7,26,8],[27,3,27,5],[27,7,27,8],[28,3,28,5],[28,7,28,8],[29,3,29,5],[29,7,29,8],[32,15,32,17],[34,0,36,1],[34,2,36,24],[30,3,30,5],[30,7,30,8],[31,3,31,5],[31,7,31,8],[32,3,32,5],[32,7,32,9],[33,4,33,6],[33,0,33,3]]}
["Spielberichtsbogen der Tischtennis Vereinsliga > Region Weimar<",null,null,null,null,null,null,null,null,null,null,null,null,null,null,null,null,null,null,null,null,null,null,null,null,null,null,null,null,null,null,null,null,null,null,null,null,null,null,null,null,null,null,null,null,null,null,null,null,null,null,"x"]
[]
["x","Meisterschaftsspiel",null,null,null,null,null,"Liga:",null,null,null,null,null,null,null,null,"Spielnummer:"]
[null,"Pokalspiel",null,null,null,null,null,"Ort:",null,null,null,null,null,null,null,null,"Ersatzspieler:"]
[null,"Freundschaftsspiel",null,null,null,null,null,"Datum:",null,null,null,null,null,null,null,null,"Heim",null,{"$f":"B6","v":0}]
["Heim",null,null,null,null,"S","N","Gast",null,null,null,null,null,null,"S","N","Ersatz1:",null,null,null,null,null,null,null,null,null,null,null,null,null,null,null,null,null,null,null,null,14]
[1,null,null,null,null,{"$f":"COUNTIFS(D$17:D$32,B7,V$17:V$32,\"1\")","v":0},{"$f":"COUNTIFS(D$17:D$32,B7,V$17:V$32,\"0\")","v":0},1,null,null,null,null,null,null,{"$f":"COUNTIFS(H$17:H$32,I7,W$17:W$32,\"1\")","v":0},{"$f":"COUNTIFS(H$17:H$32,I7,W$17:W$32,\"0\")","v":0},"Ersatz2:",null,null,null,null,null,null,null,null,null,null,null,null,null,null,null,null,null,null,null,null,13]
[2,null,null,null,null,{"$f":"COUNTIFS(D$17:D$32,B8,V$17:V$32,\"1\")","v":0},{"$f":"COUNTIFS(D$17:D$32,B8,V$17:V$32,\"0\")","v":0},2,null,null,null,null,null,null,{"$f":"COUNTIFS(H$17:H$32,I8,W$17:W$32,\"1\")","v":0},{"$f":"COUNTIFS(H$17:H$32,I8,W$17:W$32,\"0\")","v":0},"Ersatz3:",null,null,null,null,null,null,null,null,null,null,null,null,null,null,null,null,null,null,null,null,12]
[3,null,null,null,null,{"$f":"COUNTIFS(D$17:D$32,B9,V$17:V$32,\"1\")","v":0},{"$f":"COUNTIFS(D$17:D$32,B9,V$17:V$32,\"0\")","v":0},3,null,null,null,null,null,null,{"$f":"COUNTIFS(H$17:H$32,I9,W$17:W$32,\"1\")","v":0},{"$f":"COUNTIFS(H$17:H$32,I9,W$17:W$32,\"0\")","v":0},"Gast",null,{"$f":"I6","v":0},null,null,null,null,null,null,null,null,null,null,null,null,null,null,null,null,null,null,11]
[4,null,null,null,null,{"$f":"COUNTIFS(D$17:D$32,B10,V$17:V$32,\"1\")","v":0},{"$f":"COUNTIFS(D$17:D$32,B10,V$17:V$32,\"0\")","v":0},4,null,null,null,null,null,null,{"$f":"COUNTIFS(H$17:H$32,I10,W$17:W$32,\"1\")","v":0},{"$f":"COUNTIFS(H$17:H$32,I10,W$17:W$32,\"0\")","v":0},"Ersatz1:",null,null,null,null,null,null,null,null,null,null,null,null,null,null,null,null,null,null,null,null,10]
["D1",null,null,null,null,{"$f":"COUNTIFS(D$15:D$16,B11&\"/\"&D11,V$15:V$16,\"1\")","v":0},{"$f":"COUNTIFS(D$15:D$16,B11&\"/\"&D11,V$15:V$16,\"0\")","v":0},"D1",null,null,null,null,null,null,{"$f":"COUNTIFS(H$15:H$16,I11&\"/\"&J11,W$15:W$16,\"1\")","v":0},{"$f":"COUNTIFS(H$15:H$16,I11&\"/\"&J11,W$15:W$16,\"0\")","v":0},"Ersatz2:",null,null,null,null,null,null,null,null,null,null,null,null,null,null,null,null,null,null,null,null,9]
["D2",null,null,null,null,{"$f":"COUNTIFS(D$15:D$16,B12&\"/\"&D12,V$15:V$16,\"1\")","v":0},{"$f":"COUNTIFS(D$15:D$16,B12&\"/\"&D12,V$15:V$16,\"0\")","v":0},"D2",null,null,null,null,null,null,{"$f":"COUNTIFS(H$15:H$16,I12&\"/\"&J12,W$15:W$16,\"1\")","v":0},{"$f":"COUNTIFS(H$15:H$16,I12&\"/\"&J12,W$15:W$16,\"0\")","v":0},"Ersatz3:",null,null,null,null,null,null,null,null,null,null,null,null,null,null,null,null,null,null,null,null,8]
["Sen2",null,null,null,null,null,null,"Sen2",null,null,null,null,null,null,null,null,"Senior+",null,"Kein Seniorwechsel",null,null,null,null,null,null,null,null,null,null,null,null,null,null,null,null,null,null,7]
["Spiel","Pokal","Punkt-spiel",{"$f":"A6","v":"Heim"},null,null,null,{"$f":"H6","v":"Gast"},null,"1. Satz",null,"2. Satz",null,"3. Satz",null,"4. Satz",null,"5.Satz",null,"Sätze Gesamt",null,"Punkte Gesamt",null,"End stand",null,null,null,null,null,null,null,null,null,null,null,null,null,6]
["1.","1     2","D1:D1",{"$f":"IF($A$3=\"x\",CONCATENATE(B11)&\"/\"&CONCATENATE(D11),CONCATENATE(B7))","v":"/"},null,null,null,{"$f":"IF($A$3=\"x\",CONCATENATE(I11)&\"/\"&CONCATENATE(J11),CONCATENATE(I8))","v":"/"},null,null,null,null,null,null,null,null,null,null,null,{"$f":"IF(J15<>\"\",IF(J15>K15,\"1\", \"0\") +IF(L15>M15,\"1\", \"0\")+IF(N15>O15,\"1\", \"0\")+IF(P15>Q15,\"1\", \"0\")+IF(R15>S15,\"1\", \"0\"),\"\")","v":""},{"$f":"IF(J15<>\"\",IF(J15<K15,\"1\", \"0\") +IF(L15<M15,\"1\", \"0\")+IF(N15<O15,\"1\", \"0\")+IF(P15<Q15,\"1\", \"0\")+IF(R15<S15,\"1\", \"0\"),\"\")","v":""},{"$f":"IF(J15=\"\",\"\",IF(J15<>\"\",IF(T15=3,1,0),))","v":""},{"$f":"IF(J15=\"\",\"\",IF(J15<>\"\",IF(U15=3,1,0),))","v":""},{"$f":"IF(J15<>\"\",V15,\"\")","v":""},{"$f":"IF(J15<>\"\",W15,\"\")","v":""},null,null,null,null,null,null,null,null,null,null,null,null,5]
["2.","2     1","D2:D2",{"$f":"IF($A$3=\"x\",CONCATENATE(B12)&\"/\"&CONCATENATE(D12),CONCATENATE(B8))","v":"/"},null,null,null,{"$f":"IF($A$3=\"x\",CONCATENATE(I12)&\"/\"&CONCATENATE(J12),CONCATENATE(I7))","v":"/"},null,null,null,null,null,null,null,null,null,null,null,{"$f":"IF(J16<>\"\",IF(J16>K16,\"1\", \"0\") +IF(L16>M16,\"1\", \"0\")+IF(N16>O16,\"1\", \"0\")+IF(P16>Q16,\"1\", \"0\")+IF(R16>S16,\"1\", \"0\"),\"\")","v":""},{"$f":"IF(J16<>\"\",IF(J16<K16,\"1\", \"0\") +IF(L16<M16,\"1\", \"0\")+IF(N16<O16,\"1\", \"0\")+IF(P16<Q16,\"1\", \"0\")+IF(R16<S16,\"1\", \"0\"),\"\")","v":""},{"$f":"IF(J16=\"\",\"\",IF(J16<>\"\",IF(T16=3,1,0),))","v":""},{"$f":"IF(J16=\"\",\"\",IF(J16<>\"\",IF(U16=3,1,0),))","v":""},{"$f":"IFERROR(V16+X15,\"\")","v":""},{"$f":"IFERROR(W16+Y15,\"\")","v":""},null,null,null,null,null,null,null,null,null,null,null,null,4]
["3.","D1   D1","1     2",{"$f":"IF($A$3=\"x\",CONCATENATE(B7),CONCATENATE(B11)&\"/\"&CONCATENATE(D11))","v":""},null,null,null,{"$f":"IF($A$3=\"x\",CONCATENATE(I8),CONCATENATE(I11)&\"/\"&CONCATENATE(J11))","v":""},null,null,null,null,null,null,null,null,null,null,null,"","","","",{"$f":"IFERROR(V17+X16,\"\")","v":""},"",null,null,null,null,null,null,null,null,null,null,null,null,3]
["4.","1     1","2     1",{"$f":"IF($A$3=\"x\",CONCATENATE(B8),CONCATENATE(B8))","v":""},null,null,null,{"$f":"IF($A$3=\"x\",CONCATENATE(I7),CONCATENATE(I7))","v":""},null,null,null,null,null,null,null,null,null,null,null,"","","","","","",null,null,null,null,null,null,null,null,null,null,null,null,2]
["5.","2     2","3     4",{"$f":"IF($A$3=\"x\",CONCATENATE(B9),CONCATENATE(B8))","v":""},null,null,null,{"$f":"IF($A$3=\"x\",CONCATENATE(I10),CONCATENATE(I8))","v":""},null,null,null,null,null,null,null,null,null,null,null,"","","","","","",null,null,null,null,null,null,null,null,null,null,null,null,1]
["6.",null,"4     3",{"$f":"IF($A$3=\"x\",CONCATENATE(B10),\"\")","v":""},null,null,null,{"$f":"IF($A$3=\"x\",CONCATENATE(I9),\"\")","v":""},null,null,null,null,null,null,null,null,null,null,null,"","","","","","",null,null,null,null,null,null,null,null,null,null,null,null,0]
["7.",null,"1     1",{"$f":"IF($A$3=\"x\",CONCATENATE(B7),\"\")","v":""},null,null,null,{"$f":"IF($A$3=\"x\",CONCATENATE(I7),\"\")","v":""},null,null,null,null,null,null,null,null,null,null,null,"","","","","",""]
["8.",null,"2     2",{"$f":"IF($A$3=\"x\",CONCATENATE(B8),\"\")","v":""},null,null,null,{"$f":"IF($A$3=\"x\",CONCATENATE(I8),\"\")","v":""},null,null,null,null,null,null,null,null,null,null,null,"","","","","",""]
["9.",null,"3     3",{"$f":"IF($A$3=\"x\",CONCATENATE(B9),\"\")","v":""},null,null,null,{"$f":"IF($A$3=\"x\",CONCATENATE(I9),\"\")","v":""},null,null,null,null,null,null,null,null,null,null,null,"","","","","",""]
["10.",null,"4     4",{"$f":"IF($A$3=\"x\",CONCATENATE(B10),\"\")","v":""},null,null,null,{"$f":"IF($A$3=\"x\",CONCATENATE(I10),\"\")","v":""},null,null,null,null,null,null,null,null,null,null,null,"","","","","",""]
["11.",null,"3     1",{"$f":"IF($A$3=\"x\",CONCATENATE(B9),\"\")","v":""},null,null,null,{"$f":"IF($A$3=\"x\",CONCATENATE(I7),\"\")","v":""},null,null,null,null,null,null,null,null,null,null,null,"","","","","",""]
["12.",null,"1     3",{"$f":"IF($A$3=\"x\",CONCATENATE(B7),\"\")","v":""},null,null,null,{"$f":"IF($A$3=\"x\",CONCATENATE(I9),\"\")","v":""},null,null,null,null,null,null,null,null,null,null,null,"","","","","",""]
["13.",null,"2     4",{"$f":"IF($A$3=\"x\",CONCATENATE(B8),\"\")","v":""},null,null,null,{"$f":"IF($A$3=\"x\",CONCATENATE(I10),\"\")","v":""},null,null,null,null,null,null,null,null,null,null,null,"","","","","",""]
["14.",null,"4     2",{"$f":"IF($A$3=\"x\",CONCATENATE(B10),\"\")","v":""},null,null,null,{"$f":"IF($A$3=\"x\",CONCATENATE(I8),\"\")","v":""},null,null,null,null,null,null,null,null,null,null,null,"","","","","",""]
["15.",null,"1     4",{"$f":"IF($A$3=\"x\",CONCATENATE(B7),\"\")","v":""},null,null,null,{"$f":"IF($A$3=\"x\",CONCATENATE(I10),\"\")","v":""},null,null,null,null,null,null,null,null,null,null,null,"","","","","",""]
["16.",null,"4     1",{"$f":"IF($A$3=\"x\",CONCATENATE(B10),\"\")","v":""},null,null,null,{"$f":"IF($A$3=\"x\",CONCATENATE(I7),\"\")","v":""},null,null,null,null,null,null,null,null,null,null,null,"","","","","",""]
["17.",null,"2     3",{"$f":"IF($A$3=\"x\",CONCATENATE(B8),\"\")","v":""},null,null,null,{"$f":"IF($A$3=\"x\",CONCATENATE(I9),\"\")","v":""},null,null,null,null,null,null,null,null,null,null,null,"","","","","",""]
["18.",null,"3     2",{"$f":"IF($A$3=\"x\",CONCATENATE(B9),\"\")","v":""},null,null,null,{"$f":"IF($A$3=\"x\",CONCATENATE(I8),\"\")","v":""},null,null,null,null,null,null,null,null,null,null,null,"","","","","",""]
["Sieg:","4.Punkt","10.Punkt","Sieger:",null,null,null,{"$f":"IF(I6<>\"\",IF(A3=\"x\",IF(X33=10,B6,IF(Y33=10,I6,\"!Unentschieden!\")),IF(X33=4,B6,IF(Y33=4,H14,\"!Unentschieden!\"))),\"\")","v":""},null,null,"mit",null,{"$f":"IF(X33>Y33,CONCATENATE(X33),Y33)","v":""},null,{"$f":"IF(X33>Y33,CONCATENATE(Y33),X33)","v":""},"Punkten",null,null,null,{"$f":"IF(T15=\"\",\"\",SUM(T15:T32))","v":""},{"$f":"IF(U15=\"\",\"\",SUM(U15:U32))","v":""},null,null,{"$f":"IF(J15=\"\",\"\",IF(MAX(X15:X32)>10,10,MAX(X15:X32)))","v":""},{"$f":"IF(J15=\"\",\"\",IF(MAX(Y15:Y32)>10,\"10\",MAX(Y15:Y32)))","v":""}]
[null,null,null,null,"Unterschriften: ",null,null,"MF Gastgeber",null,null,null,null,"MF Gast"]
["Bemerkungen: "]

{"sheet":"STARTEN","index":8,"n_rows":9,"n_cols":18,"rows_kept":9,"cut":false,"hidden":false,"merged":[[1,1,1,3]]}
[null,null,"Spielzeit 2023/2024 Rückrunde"]
[null,"BITTE WÄHLE ZUM START HIER DEIN SPIEL AUS!"]
[]
[null,"Staffel 1:",null,null,null,null,null,null,null,null,null,null,null,null,null,null,null,"Nicht ändern"]
[]
[null,"Staffel 2:",null,null,null,null,null,null,null,null,null,null,null,null,null,null,null,{"$f":"IFERROR(LEFT(RIGHT(C4,LEN(C4)-SEARCH(\":\",C4)),6),)","v":0}]
[null,null,null,null,null,null,null,null,null,null,null,null,null,null,null,null,null,{"$f":"IFERROR(LEFT(RIGHT(C6,LEN(C6)-SEARCH(\":\",C6)),6),)","v":0}]
[null,"Staffel 3:",null,null,null,null,null,null,null,null,null,null,null,null,null,null,null,{"$f":"IFERROR(LEFT(RIGHT(C8,LEN(C8)-SEARCH(\":\",C8)),6),)","v":0}]
[null,null,null,null,null,null,null,null,null,null,null,null,null,null,null,null,null,{"$f":"IFERROR(LEFT(RIGHT(C10,LEN(C10)-SEARCH(\":\",C10)),6),)","v":0}]

{"sheet":"Anleitung","index":9,"n_rows":12,"n_cols":3,"rows_kept":12,"cut":false,"hidden":false,"merged":[]}
[null,"Anleitung:"]
[null,null,"Beginn: Tabellenblatt STARTEN auswählen! Dort das Spiel wählen!\n1. Im neuen Blatt Mannschaften und Spieler wählen!\n"]
[null,null,"2. Alle Eingaben vornehmen und die Gelben Felder füllen"]
[null,null,"3. Ersatzspieler werden oben Rechts für Heim und Gast eingetragen!"]
[null,null,"4. Am Ende wird mit Bild Speichern und Formular abschliessen das Formular exportiert und kann an den Staffelleiter gesendet werden. Zu finden ist das Bild unter c:/Spielberichte"]
[null,null,"Blendet das aktuelle Spielergebnis des"]
[null,null,"Spiels in Groß ein,damit Zuschauer den"]
[null,null,"aktuellen Stand sehen können"]
[]
[null,null,"Speichert das aktuelle Spielergebnis als JPG"]
[null,null,"Datei unter C:/Spielberichte. Diese kann dann"]
[null,null,"an den Staffelleiter versendet werden."]